Workbook

Sheet Inputs
A1: Investment Property Analysis Sheet | K1: 1 | T1: Primary Residence | W1: Monthly Paid
A2: Provided by Joe Massey with Synergy One Lending - Version 7.0 | K2: 2 | T2: Investment Property | W2: Upfront Single Paid
A3: Joe Massey: 303-809-7769 - Email: jmassey@s1l.com - Website: www.LoansByJoeMassey.com NMLS: 7538 - CO: 10017422 - Regulated by the Division of Real Estate © 2011 Joe Massey | K3: 3
K4: 4
A5: Your Castle Real Estate - 303-962-4272 - Website: www.YourCastle.com
A7: Return on Investment Quadrant™ is a trademark of Real Estate Financial Planner LLC & James Orr - Website: https://RealEstateFinancialPlanner.com
A10: Instructions --> | B10: 1 - Click ENABLE CONTENT if you see the yellow warning at the top. 2 - Work your way down this sheet inputting the appropriate information in to each YELLOW field
B11: 3 - Be sure to input the correct number of units for your subject property (SFR through Four-Plex)
A12: Latest Revision Date: | B12: 4 - Please note that certain lines have comments to provide additional help for you
A13: January 6th, 2023 | B13: 5 - Once the YELLOW fields are completed, you can view your results on the Cash-Flow Sheet and additional tabs
B14: 6 - For detailed video training and FAQs go to www.LoansByJoeMassey.com/investment-spreadsheet
A16: Property Address | B16: Sample Property | C16: =(IF($B$20<0.1999,"Mortgage Insurance is based on best case scenario. To calculate your estimated mortgage insurance, download the mortgage calculator app:", " ")) -> Mortgage Insurance is based on best case scenario. To calculate your estimated mortgage insurance, download the mortgage calculator app:
A17: Number of Units | B17: 2
A18: Initial Occupancy Status | B18: Primary Residence | C18: =(IF($B$20<0.1999,HYPERLINK("www.LoansByJoeMassey.com/mortgage-calculator"), "")) -> www.LoansByJoeMassey.com/mortgage-calculator
A20: Down Payment Percentage | B20: 0.05 | C20: =IF(B18="Primary Residence",(IF(AND(B17=2,B20<0.15),"WARNING - Borrower may need more down payment! Minimum Down Payment on FHA Duplex is 3.5% Minimum Down Payment on Conventional Duplex is 15%",IF(AND(B17>=3,B20<0.25),"WARNING - Borrower needs more down payment! Minimum Down Payment on Multi-Unit is 25%."," "))),(IF(AND(B17=1,B20<0.15),"WARNING - Borrower needs more down payment! Minimum Down Payment on SFR is 15%",IF(AND(B17>=2,B20<0.25),"WARNING - Borrower needs more down payment! Minimum Down Payment on Multi-Unit is 25%."," ")))) -> WARNING - Borrower may need more down payment! Minimum Down Payment on FHA Duplex is 3.5% Minimum Down Payment on Conventional Duplex is 15%
A22: Type of Mortgage Insurance | B22: Upfront Single Paid
B23: =IF(B22="Monthly Paid",0,1) -> 1
A24: Purchase Price | B24: 725000 | C24: =IF(B29<75000, "WARNING - Your borrower will need to pay cash for this property. Minimum loan amount of $75,000", " ") -> 
A25: Acquisition Costs | B25: 21000
A26: Loan Costs | B26: =1690+IF(B18="Primary Residence",0)*(IF(B20<0.1999,(B24*(1-B20)*0.02),(IF(B20<0.2499,(B24*(1-B20)*0.01),(B24*(1-B20)*0.0075))))) -> 1690 | C26: =IF(AND(B17=1,B29>787750),"WARNING - Borrower needs more down payment! Maximum Conventional Loan Amount on SFR is $787,750", IF(AND(B17=2,B29>1008450),"WARNING - Borrower needs more down payment! Maximum Conventional Loan Amount on Duplex is $1,008,450", IF(AND(B17=3,B29>1219000),"WARNING - Borrower needs more down payment! Maximum Conventional Loan Amount on Tri-Plex is $1,219,000", IF(AND(B17=4,B29>1514950),"WARNING - Borrower needs more down payment! Maximum Conventional Loan Amount on Four-Plex is $1,514,950", " ")))) -> 
A27: Upfront Mortgage Insurance | B27: 0
A28: Down Payment | B28: =B20*B24 -> 36250
A29: Mortgage Balance | B29: =B24-B28 -> 688750
A30: Initial Investment | B30: =SUM(B25:B28) -> 58940
A31: Seller Credits | C31: =IF(B18="Primary Residence",IF(B31>(B24*0.03),"Seller Concessions can not exceed 3% on a Primary Residence"," "),IF(B31>(B24*0.02),"Seller Concessions can not exceed 2% on an Investment Property"," ")) -> 
A32: Initial Repair Costs | B32: 0
A33: Total Initial Investment | B33: =B30+B32-IF((B25+B26+B27)>B31,B31,(B25+B26+B27)) -> 58940
A35: Mortgage Interest Rate | B35: 0.0649
A36: Mortgage Term (years) | B36: 30
A37: Mortgage Insurance | B37: =IF(B22="Monthly Paid",(IF(B20<0.1999,(B29*0.0043/12), 0)),0) -> 0 | C37: HIDE BEFORE DISTRIBUTION
A38: =IF(B18="Primary Residence","MONTHLY Rental Income Per Unit AFTER you move out", "MONTHLY Rental Income Per Unit") -> MONTHLY Rental Income Per Unit AFTER you move out | D38: Notes regarding monthly rents
A39: Unit #1 | B39: 2550
A40: Unit #2 | B40: 1150 | C40: =IF(AND(B40>0,B17<2),"This rent is not included in total because you do not have 2-unit selected above.", " ") -> 
A41: Unit #3 | B41: 0 | C41: =IF(AND(B41>0,B17<3),"This rent is not included in total because you do not have 3-unit selected above.", " ") -> 
A42: Unit #4 | B42: 0 | C42: =IF(AND(B42>0,B17<4),"This rent is not included in total because you do not have 4-unit selected above.", " ") -> 
A43: Total Rental Income | B43: =IF(B17=1, SUM(B39), IF(B17=2, SUM(B39:B40), IF(B17=3, SUM(B39:B41), IF(B17=4, SUM(B39:B42)," ")))) -> 3700
A45: Vacancy Factor | B45: 0.05
A47: Annual Rent Increase | B47: 0.04 | C47: =IF(B47>0.05,"REMINDER - The national average rent increase for the last 40 years is 5%", " ") -> 
A49: Annual Appreciation Rate | B49: 0.03 | C49: =IF(B49>0.06,"REMINDER - The national average appreciation for the last 40 years is 6%", " ") -> 
A51: Effective Tax Rate | B51: 0.32
A53: Monthly Operating Expenses | D53: Comments/Footnotes On Expenses
A54: Do you pay for property management? | B54: No | K54: Yes | M54: Hide before distribution
K55: No
A57: Monthly Cost for Property Management - Percentage | B57: 0 | D57: Industry Average is 10% of gross rents for Property Management
A59: Annual Property Management | B59: =IF(B54="No",0,B43*B57*12) -> 0 | C59: HIDE BEFORE DISTRIBUTION
A60: Monthly Reserves for Maintenance - Percentage | B60: 0.08 | D60: Generally a range of 7% - 10% of gross rents for repairs/maintenance
A62: Annual Reserves for Maintenance | B62: =B60*B43*12 -> 3552 | C62: HIDE BEFORE DISTRIBUTION
A63: Is there an HOA | B63: No
A66: Monthly HOA Dues | B66: 0 | D66: Add any HOA comments here
A67: Annual HOA Dues | B67: =IF(B63="No",0,B66*12) -> 0 | C67: HIDE BEFORE DISTRIBUTION
A69: Additional Annual Expenses
A70: Annual Real Estate Taxes | B70: 3500 | D70: 2022 Assessment
A71: Annual Property Insurance | B71: 3000
A72: Utilities (If paid by owner)
A73: - Water and Sewer | B73: 0
A74: - Trash | B74: 0
A75: - Electric | B75: 0
A76: Landscaping | B76: 0
A77: Other | B77: 0
A78: Other | B78: 0
A80: Any Additional Notes About This Property?
A84: This sheet is for informational purposes only. This is not a commitment, approval or guarantee to lend. The figures included in this worksheet are entirely dependent on the information that you input. These figures and calculations are considered accurate, but not guaranteed. Joe Massey and Synergy One Lending do not represent, warrant or guarantee these numbers. James Orr and Real Estate Financial Planner LLC do not represent, warrant or guarantee these numbers. All information is for preliminary analysis and calculations only. Please contact your tax advisor, CPA, financial planner, attorney, insurance agent, real estate agent or other properly licensed professional for additional information as needed. This spreadsheet is copyrighted as of 2011 through present day. Any use modifications or distributions are only with permission of Joe Massey.

Sheet Cash-Flow
A1: Cash Flow Analysis of | C1: =Inputs!B16 -> Sample Property
A3: Number of Units | C3: =Inputs!B17 -> 2
A5: Cash Investment Breakdown
A6: Purchase Price | C6: =Inputs!B24 -> 725000
A7: Mortgage | C7: =Inputs!B29 -> 688750
A8: Down Payment | C8: =Inputs!B28 -> 36250
A9: Net Closing Costs to Buyer | C9: =Inputs!B25+Inputs!B26+Inputs!B27-IF((Inputs!B25+Inputs!B26+Inputs!B27)>Inputs!B31,Inputs!B31,(Inputs!B25+Inputs!B26+Inputs!B27)) -> 22690
A10: Repair Costs | C10: =Inputs!B32 -> 0
A11: Total Cash Investment | C11: =Inputs!B33 -> 58940
A13: Annual Cash Flow Statement
A15: Annual Income
A16: ="Annual Rental Income @ $"&E16&" per month" -> Annual Rental Income @ $3700 per month | C16: =Inputs!B43*12 -> 44400 | E16: =Inputs!B43 -> 3700 | F16: per month
A17: - Vacancy | B17: =Inputs!B45 -> 0.05 | C17: =-C16*Inputs!B45 -> -2220
A18: Expected Annual Rental Income | C18: =SUM(C16:C17) -> 42180
A20: Annual Expenses | E20: Comments/Footnotes
A21: Property Management | C21: =Inputs!B59 -> 0 | E21: =Inputs!D57 -> Industry Average is 10% of gross rents for Property Management
A22: Reserves for Repairs and Maintenance | C22: =Inputs!B62 -> 3552 | E22: =Inputs!D60 -> Generally a range of 7% - 10% of gross rents for repairs/maintenance
A23: HOA Dues | C23: =Inputs!B67 -> 0 | E23: =Inputs!D66 -> Add any HOA comments here
A24: Real Estate Taxes | C24: =Inputs!B70 -> 3500 | E24: =Inputs!D70 -> 2022 Assessment
A25: Property Insurance | C25: =Inputs!B71 -> 3000 | E25: =Inputs!D71 -> 0
A26: Utilities (If paid by owner)
A27: - Water and Sewer | C27: =Inputs!B73 -> 0 | E27: =Inputs!D73 -> 0
A28: - Trash | C28: =Inputs!B74 -> 0 | E28: =Inputs!D74 -> 0
A29: - Electric | C29: =Inputs!B75 -> 0 | E29: =Inputs!D75 -> 0
A30: Landscaping | C30: =Inputs!B76 -> 0 | E30: =Inputs!D76 -> 0
A31: =Inputs!A77 -> Other | C31: =Inputs!B77 -> 0 | E31: =Inputs!D77 -> 0
A32: =Inputs!A78 -> Other | C32: =Inputs!B78 -> 0 | E32: =Inputs!D78 -> 0
A33: Total Annual Expenses | C33: =SUM(C21:C32) -> 10052
A35: Net Operating Income | C35: =C18-C33 -> 32128
A37: Less: Annual Mortgage Payments | C37: =PMT(Inputs!B35/12,Inputs!B36*12,Inputs!B29,0)*12 -> -52186.07917 | E37: =Inputs!B29 -> 688750 | F37: @ | G37: =Inputs!B35 -> 0.0649 | H37: = | I37: =-C37/12 -> 4348.839931 | J37: per month
A38: Less: Annual Mortgage Insurance | C38: =-Inputs!B37*12 -> 0 | E38: Estimated Mortgage Insurance | H38: = | I38: =Inputs!B37 -> 0 | J38: per month
A40: Annual Cash Flow Before Taxes | C40: =C35+C37+C38 -> -20058.07917
A42: 1st Year Returns
A43: Cash-on-Cash Rate of Return | C43: =C40/C11 -> -0.3403135251 | E43: =C40 -> -20058.07917 | F43: ÷ | G43: =C11 -> 58940 | H43: = | I43: =C43 -> -0.3403135251
A45: CAP Rate | C45: =C35/(C6+C10) -> 0.04431448276 | E45: =C35 -> 32128 | F45: ÷ | G45: =C6+C10 -> 725000 | H45: = | I45: =C45 -> 0.04431448276
A47: GRM - Gross Rent Multiplier | C47: =I47 -> 195.9459459 | E47: =C6+C10 -> 725000 | F47: ÷ | G47: =E16 -> 3700 | H47: = | I47: =E47/G47 -> 195.9459459
A49: Cindy's Number | B49: =IF(INT((E49-G49)/C3)>1000,"YES!","NO!") -> NO! | C49: ="$"&(INT((E49-G49)/C3))&" / mo" -> $-596 / mo | E49: =E16 -> 3700 | F49: - | G49: =((C23+C24+C25)/12)+I37 -> 4890.506597 | H49: / | I49: =C3&" Units" -> 2 Units | J49: ="= $"&(INT((E49-G49)/C3))&" / mo" -> = $-596 / mo
A52: 5 Year After-Tax Return | C52: ='Long-Term Analysis'!S50 -> 0.005335487614 | E52: 5 Year After Tax Cash-flows + 5 Year Exit - Capital Gains
A53: 1st Year Return On Investment QuadrantTM (ROIQ)
A55: Appreciation | C55: =((C6*(1+Inputs!B49))-Inputs!B24)/C11 -> 0.3690193417 | D55: =((C6*(1+Inputs!B49))-Inputs!B24) -> 21750
A56: Cash Flow | C56: =C40/Inputs!B33 -> -0.3403135251 | D56: =C40 -> -20058.07917
A57: Debt Paydown | C57: =-(CUMPRINC(Inputs!$B$35/12,Inputs!B36*12,Inputs!$B$29,1,12,0))/Inputs!B33 -> 0.1308610674 | D57: =-(CUMPRINC(Inputs!$B$35/12,Inputs!B36*12,Inputs!$B$29,1,12,0)) -> 7712.951314
A58: Cash Flow From Depreciation | C58: =(Inputs!B24*0.85/27.5)*Inputs!B51/Inputs!B33 -> 0.1216645587 | D58: =(Inputs!B24*0.85/27.5)*Inputs!B51 -> 7170.909091
A59: Total ROI | C59: =SUM(C55:C58) -> 0.2812314427 | D59: =SUM(D55:D58) -> 16575.78124
B60: **Return On Investment QuadrantTM is a trademark of Real Estate Financial Planner LLC
A62: =Inputs!A84 -> This sheet is for informational purposes only. This is not a commitment, approval or guarantee to lend. The figures included in this worksheet are entirely dependent on the information that you input. These figures and calculations are considered accurate, but not guaranteed. Joe Massey and Synergy One Lending do not represent, warrant or guarantee these numbers. James Orr and Real Estate Financial Planner LLC do not represent, warrant or guarantee these numbers. All information is for preliminary analysis and calculations only. Please contact your tax advisor, CPA, financial planner, attorney, insurance agent, real estate agent or other properly licensed professional for additional information as needed. This spreadsheet is copyrighted as of 2011 through present day. Any use modifications or distributions are only with permission of Joe Massey.

Sheet Long-Term Analysis
A1: Cash Flow Analysis for | D1: =Inputs!B16 -> Sample Property | G1: Cash Investment Breakdown
G2: Purchase Price | M2: =Inputs!B24 -> 725000
B3: Number of Units | D3: =Inputs!B17 -> 2 | G3: Mortgage | M3: =Inputs!B29 -> 688750
G4: Down Payment | M4: =Inputs!B28 -> 36250
A5: Annual Rent Increase | D5: =Inputs!B47 -> 0.04 | G5: Net Closing Costs Paid by Buyer | M5: =Inputs!B25+Inputs!B26+Inputs!B27-IF((Inputs!B25+Inputs!B26+Inputs!B27)>Inputs!B31,Inputs!B31,(Inputs!B25+Inputs!B26+Inputs!B27)) -> 22690
G6: Repair Costs | M6: =Inputs!B32 -> 0
A7: Annual Cash Flow Statement | G7: Total Cash Investment | M7: =Inputs!B33 -> 58940
A9: Annual Income | D9: Year 1 | G9: Year 2 | J9: Year 3 | M9: Year 4 | P9: Year 5 | S9: Year 6 | V9: Year 7 | Y9: Year 8 | AB9: Year 9 | AE9: Year 10 | AH9: Year 11 | AK9: Year 12 | AN9: Year 13 | AQ9: Year 14 | AT9: Year 15 | AW9: Year 16 | AZ9: Year 17 | BC9: Year 18 | BF9: Year 19 | BI9: Year 20 | BL9: Year 21 | BO9: Year 22 | BR9: Year 23 | BU9: Year 24 | BX9: Year 25 | CA9: Year 26 | CD9: Year 27 | CG9: Year 28 | CJ9: Year 29 | CM9: Year 30 | CP9: Year 31
A10: Annual Rental Income | D10: =Inputs!B43*12 -> 44400 | G10: =D10*(1+$D$5) -> 46176 | J10: =G10*(1+$D$5) -> 48023.04 | M10: =J10*(1+$D$5) -> 49943.9616 | P10: =M10*(1+$D$5) -> 51941.72006 | S10: =P10*(1+$D$5) -> 54019.38887 | V10: =S10*(1+$D$5) -> 56180.16442 | Y10: =V10*(1+$D$5) -> 58427.371 | AB10: =Y10*(1+$D$5) -> 60764.46584 | AE10: =AB10*(1+$D$5) -> 63195.04447 | AH10: =AE10*(1+$D$5) -> 65722.84625 | AK10: =AH10*(1+$D$5) -> 68351.7601 | AN10: =AK10*(1+$D$5) -> 71085.8305 | AQ10: =AN10*(1+$D$5) -> 73929.26372 | AT10: =AQ10*(1+$D$5) -> 76886.43427 | AW10: =AT10*(1+$D$5) -> 79961.89164 | AZ10: =AW10*(1+$D$5) -> 83160.36731 | BC10: =AZ10*(1+$D$5) -> 86486.782 | BF10: =BC10*(1+$D$5) -> 89946.25328 | BI10: =BF10*(1+$D$5) -> 93544.10341 | BL10: =BI10*(1+$D$5) -> 97285.86755 | BO10: =BL10*(1+$D$5) -> 101177.3023 | BR10: =BO10*(1+$D$5) -> 105224.3943 | BU10: =BR10*(1+$D$5) -> 109433.3701 | BX10: =BU10*(1+$D$5) -> 113810.7049 | CA10: =BX10*(1+$D$5) -> 118363.1331 | CD10: =CA10*(1+$D$5) -> 123097.6584 | CG10: =CD10*(1+$D$5) -> 128021.5648 | CJ10: =CG10*(1+$D$5) -> 133142.4274 | CM10: =CJ10*(1+$D$5) -> 138468.1245 | CP10: =CM10*(1+$D$5) -> 144006.8494
A11: - Vacancy | B11: =Inputs!B45 -> 0.05 | D11: =-D10*Inputs!B45 -> -2220 | G11: =-G10*Inputs!$B$45 -> -2308.8 | J11: =-J10*Inputs!$B$45 -> -2401.152 | M11: =-M10*Inputs!$B$45 -> -2497.19808 | P11: =-P10*Inputs!$B$45 -> -2597.086003 | S11: =-S10*Inputs!$B$45 -> -2700.969443 | V11: =-V10*Inputs!$B$45 -> -2809.008221 | Y11: =-Y10*Inputs!$B$45 -> -2921.36855 | AB11: =-AB10*Inputs!$B$45 -> -3038.223292 | AE11: =-AE10*Inputs!$B$45 -> -3159.752224 | AH11: =-AH10*Inputs!$B$45 -> -3286.142313 | AK11: =-AK10*Inputs!$B$45 -> -3417.588005 | AN11: =-AN10*Inputs!$B$45 -> -3554.291525 | AQ11: =-AQ10*Inputs!$B$45 -> -3696.463186 | AT11: =-AT10*Inputs!$B$45 -> -3844.321714 | AW11: =-AW10*Inputs!$B$45 -> -3998.094582 | AZ11: =-AZ10*Inputs!$B$45 -> -4158.018366 | BC11: =-BC10*Inputs!$B$45 -> -4324.3391 | BF11: =-BF10*Inputs!$B$45 -> -4497.312664 | BI11: =-BI10*Inputs!$B$45 -> -4677.205171 | BL11: =-BL10*Inputs!$B$45 -> -4864.293378 | BO11: =-BO10*Inputs!$B$45 -> -5058.865113 | BR11: =-BR10*Inputs!$B$45 -> -5261.219717 | BU11: =-BU10*Inputs!$B$45 -> -5471.668506 | BX11: =-BX10*Inputs!$B$45 -> -5690.535246 | CA11: =-CA10*Inputs!$B$45 -> -5918.156656 | CD11: =-CD10*Inputs!$B$45 -> -6154.882922 | CG11: =-CG10*Inputs!$B$45 -> -6401.078239 | CJ11: =-CJ10*Inputs!$B$45 -> -6657.121369 | CM11: =-CM10*Inputs!$B$45 -> -6923.406223 | CP11: =-CP10*Inputs!$B$45 -> -7200.342472
A12: Expected Annual Rental Income | D12: =SUM(D10:D11) -> 42180 | G12: =SUM(G10:G11) -> 43867.2 | J12: =SUM(J10:J11) -> 45621.888 | M12: =SUM(M10:M11) -> 47446.76352 | P12: =SUM(P10:P11) -> 49344.63406 | S12: =SUM(S10:S11) -> 51318.41942 | V12: =SUM(V10:V11) -> 53371.1562 | Y12: =SUM(Y10:Y11) -> 55506.00245 | AB12: =SUM(AB10:AB11) -> 57726.24255 | AE12: =SUM(AE10:AE11) -> 60035.29225 | AH12: =SUM(AH10:AH11) -> 62436.70394 | AK12: =SUM(AK10:AK11) -> 64934.1721 | AN12: =SUM(AN10:AN11) -> 67531.53898 | AQ12: =SUM(AQ10:AQ11) -> 70232.80054 | AT12: =SUM(AT10:AT11) -> 73042.11256 | AW12: =SUM(AW10:AW11) -> 75963.79706 | AZ12: =SUM(AZ10:AZ11) -> 79002.34894 | BC12: =SUM(BC10:BC11) -> 82162.4429 | BF12: =SUM(BF10:BF11) -> 85448.94062 | BI12: =SUM(BI10:BI11) -> 88866.89824 | BL12: =SUM(BL10:BL11) -> 92421.57417 | BO12: =SUM(BO10:BO11) -> 96118.43714 | BR12: =SUM(BR10:BR11) -> 99963.17463 | BU12: =SUM(BU10:BU11) -> 103961.7016 | BX12: =SUM(BX10:BX11) -> 108120.1697 | CA12: =SUM(CA10:CA11) -> 112444.9765 | CD12: =SUM(CD10:CD11) -> 116942.7755 | CG12: =SUM(CG10:CG11) -> 121620.4865 | CJ12: =SUM(CJ10:CJ11) -> 126485.306 | CM12: =SUM(CM10:CM11) -> 131544.7182 | CP12: =SUM(CP10:CP11) -> 136806.507
A14: Annual Expenses
A15: Property Management | D15: =Inputs!B59 -> 0 | G15: =(G10*Inputs!$B$57) -> 0 | J15: =J10*Inputs!$B$57 -> 0 | M15: =M10*Inputs!$B$57 -> 0 | P15: =P10*Inputs!$B$57 -> 0 | S15: =S10*Inputs!$B$57 -> 0 | V15: =V10*Inputs!$B$57 -> 0 | Y15: =Y10*Inputs!$B$57 -> 0 | AB15: =AB10*Inputs!$B$57 -> 0 | AE15: =AE10*Inputs!$B$57 -> 0 | AH15: =AH10*Inputs!$B$57 -> 0 | AK15: =AK10*Inputs!$B$57 -> 0 | AN15: =AN10*Inputs!$B$57 -> 0 | AQ15: =AQ10*Inputs!$B$57 -> 0 | AT15: =AT10*Inputs!$B$57 -> 0 | AW15: =AW10*Inputs!$B$57 -> 0 | AZ15: =AZ10*Inputs!$B$57 -> 0 | BC15: =BC10*Inputs!$B$57 -> 0 | BF15: =BF10*Inputs!$B$57 -> 0 | BI15: =BI10*Inputs!$B$57 -> 0 | BL15: =BL10*Inputs!$B$57 -> 0 | BO15: =BO10*Inputs!$B$57 -> 0 | BR15: =BR10*Inputs!$B$57 -> 0 | BU15: =BU10*Inputs!$B$57 -> 0 | BX15: =BX10*Inputs!$B$57 -> 0 | CA15: =CA10*Inputs!$B$57 -> 0 | CD15: =CD10*Inputs!$B$57 -> 0 | CG15: =CG10*Inputs!$B$57 -> 0 | CJ15: =CJ10*Inputs!$B$57 -> 0 | CM15: =CM10*Inputs!$B$57 -> 0 | CP15: =CP10*Inputs!$B$57 -> 0
A16: Reserves for Repairs and Maintenance | D16: =Inputs!B62 -> 3552 | G16: =G10*Inputs!B60 -> 3694.08 | J16: =G16*(1.03) -> 3804.9024 | M16: =J16*(1.03) -> 3919.049472 | P16: =M16*(1.03) -> 4036.620956 | S16: =P16*(1.03) -> 4157.719585 | V16: =S16*(1.03) -> 4282.451172 | Y16: =V16*(1.03) -> 4410.924708 | AB16: =Y16*(1.03) -> 4543.252449 | AE16: =AB16*(1.03) -> 4679.550022 | AH16: =AE16*(1.03) -> 4819.936523 | AK16: =AH16*(1.03) -> 4964.534619 | AN16: =AK16*(1.03) -> 5113.470657 | AQ16: =AN16*(1.03) -> 5266.874777 | AT16: =AQ16*(1.03) -> 5424.88102 | AW16: =AT16*(1.03) -> 5587.627451 | AZ16: =AW16*(1.03) -> 5755.256274 | BC16: =AZ16*(1.03) -> 5927.913963 | BF16: =BC16*(1.03) -> 6105.751381 | BI16: =BF16*(1.03) -> 6288.923923 | BL16: =BI16*(1.03) -> 6477.591641 | BO16: =BL16*(1.03) -> 6671.91939 | BR16: =BO16*(1.03) -> 6872.076971 | BU16: =BR16*(1.03) -> 7078.239281 | BX16: =BU16*(1.03) -> 7290.586459 | CA16: =BX16*(1.03) -> 7509.304053 | CD16: =CA16*(1.03) -> 7734.583174 | CG16: =CD16*(1.03) -> 7966.62067 | CJ16: =CG16*(1.03) -> 8205.61929 | CM16: =CJ16*(1.03) -> 8451.787868 | CP16: =CM16*(1.03) -> 8705.341504
A17: HOA Dues | D17: =Inputs!B67 -> 0 | G17: =D17*(1.03) -> 0 | J17: =G17*(1.03) -> 0 | M17: =J17*(1.03) -> 0 | P17: =M17*(1.03) -> 0 | S17: =P17*(1.03) -> 0 | V17: =S17*(1.03) -> 0 | Y17: =V17*(1.03) -> 0 | AB17: =Y17*(1.03) -> 0 | AE17: =AB17*(1.03) -> 0 | AH17: =AE17*(1.03) -> 0 | AK17: =AH17*(1.03) -> 0 | AN17: =AK17*(1.03) -> 0 | AQ17: =AN17*(1.03) -> 0 | AT17: =AQ17*(1.03) -> 0 | AW17: =AT17*(1.03) -> 0 | AZ17: =AW17*(1.03) -> 0 | BC17: =AZ17*(1.03) -> 0 | BF17: =BC17*(1.03) -> 0 | BI17: =BF17*(1.03) -> 0 | BL17: =BI17*(1.03) -> 0 | BO17: =BL17*(1.03) -> 0 | BR17: =BO17*(1.03) -> 0 | BU17: =BR17*(1.03) -> 0 | BX17: =BU17*(1.03) -> 0 | CA17: =BX17*(1.03) -> 0 | CD17: =CA17*(1.03) -> 0 | CG17: =CD17*(1.03) -> 0 | CJ17: =CG17*(1.03) -> 0 | CM17: =CJ17*(1.03) -> 0 | CP17: =CM17*(1.03) -> 0
A18: Real Estate Taxes | D18: =Inputs!B70 -> 3500 | G18: =D18*(1.03) -> 3605 | J18: =G18*(1.03) -> 3713.15 | M18: =J18*(1.03) -> 3824.5445 | P18: =M18*(1.03) -> 3939.280835 | S18: =P18*(1.03) -> 4057.45926 | V18: =S18*(1.03) -> 4179.183038 | Y18: =V18*(1.03) -> 4304.558529 | AB18: =Y18*(1.03) -> 4433.695285 | AE18: =AB18*(1.03) -> 4566.706143 | AH18: =AE18*(1.03) -> 4703.707328 | AK18: =AH18*(1.03) -> 4844.818548 | AN18: =AK18*(1.03) -> 4990.163104 | AQ18: =AN18*(1.03) -> 5139.867997 | AT18: =AQ18*(1.03) -> 5294.064037 | AW18: =AT18*(1.03) -> 5452.885958 | AZ18: =AW18*(1.03) -> 5616.472537 | BC18: =AZ18*(1.03) -> 5784.966713 | BF18: =BC18*(1.03) -> 5958.515714 | BI18: =BF18*(1.03) -> 6137.271186 | BL18: =BI18*(1.03) -> 6321.389321 | BO18: =BL18*(1.03) -> 6511.031001 | BR18: =BO18*(1.03) -> 6706.361931 | BU18: =BR18*(1.03) -> 6907.552789 | BX18: =BU18*(1.03) -> 7114.779373 | CA18: =BX18*(1.03) -> 7328.222754 | CD18: =CA18*(1.03) -> 7548.069436 | CG18: =CD18*(1.03) -> 7774.511519 | CJ18: =CG18*(1.03) -> 8007.746865 | CM18: =CJ18*(1.03) -> 8247.979271 | CP18: =CM18*(1.03) -> 8495.418649
A19: Property Insurance | D19: =Inputs!B71 -> 3000 | G19: =D19*1.03 -> 3090 | J19: =G19*1.03 -> 3182.7 | M19: =J19*1.03 -> 3278.181 | P19: =M19*1.03 -> 3376.52643 | S19: =P19*1.03 -> 3477.822223 | V19: =S19*1.03 -> 3582.15689 | Y19: =V19*1.03 -> 3689.621596 | AB19: =Y19*1.03 -> 3800.310244 | AE19: =AB19*1.03 -> 3914.319551 | AH19: =AE19*1.03 -> 4031.749138 | AK19: =AH19*1.03 -> 4152.701612 | AN19: =AK19*1.03 -> 4277.282661 | AQ19: =AN19*1.03 -> 4405.60114 | AT19: =AQ19*1.03 -> 4537.769175 | AW19: =AT19*1.03 -> 4673.90225 | AZ19: =AW19*1.03 -> 4814.119317 | BC19: =AZ19*1.03 -> 4958.542897 | BF19: =BC19*1.03 -> 5107.299184 | BI19: =BF19*1.03 -> 5260.518159 | BL19: =BI19*1.03 -> 5418.333704 | BO19: =BL19*1.03 -> 5580.883715 | BR19: =BO19*1.03 -> 5748.310227 | BU19: =BR19*1.03 -> 5920.759533 | BX19: =BU19*1.03 -> 6098.382319 | CA19: =BX19*1.03 -> 6281.333789 | CD19: =CA19*1.03 -> 6469.773803 | CG19: =CD19*1.03 -> 6663.867017 | CJ19: =CG19*1.03 -> 6863.783027 | CM19: =CJ19*1.03 -> 7069.696518 | CP19: =CM19*1.03 -> 7281.787414
A20: Utilities (If paid by owner)
A21: - Water and Sewer | D21: =Inputs!B73 -> 0 | G21: =D21*1.03 -> 0 | J21: =G21*1.03 -> 0 | M21: =J21*1.03 -> 0 | P21: =M21*1.03 -> 0 | S21: =P21*1.03 -> 0 | V21: =S21*1.03 -> 0 | Y21: =V21*1.03 -> 0 | AB21: =Y21*1.03 -> 0 | AE21: =AB21*1.03 -> 0 | AH21: =AE21*1.03 -> 0 | AK21: =AH21*1.03 -> 0 | AN21: =AK21*1.03 -> 0 | AQ21: =AN21*1.03 -> 0 | AT21: =AQ21*1.03 -> 0 | AW21: =AT21*1.03 -> 0 | AZ21: =AW21*1.03 -> 0 | BC21: =AZ21*1.03 -> 0 | BF21: =BC21*1.03 -> 0 | BI21: =BF21*1.03 -> 0 | BL21: =BI21*1.03 -> 0 | BO21: =BL21*1.03 -> 0 | BR21: =BO21*1.03 -> 0 | BU21: =BR21*1.03 -> 0 | BX21: =BU21*1.03 -> 0 | CA21: =BX21*1.03 -> 0 | CD21: =CA21*1.03 -> 0 | CG21: =CD21*1.03 -> 0 | CJ21: =CG21*1.03 -> 0 | CM21: =CJ21*1.03 -> 0 | CP21: =CM21*1.03 -> 0
A22: - Trash | D22: =Inputs!B74 -> 0 | G22: =D22*1.03 -> 0 | J22: =G22*1.03 -> 0 | M22: =J22*1.03 -> 0 | P22: =M22*1.03 -> 0 | S22: =P22*1.03 -> 0 | V22: =S22*1.03 -> 0 | Y22: =V22*1.03 -> 0 | AB22: =Y22*1.03 -> 0 | AE22: =AB22*1.03 -> 0 | AH22: =AE22*1.03 -> 0 | AK22: =AH22*1.03 -> 0 | AN22: =AK22*1.03 -> 0 | AQ22: =AN22*1.03 -> 0 | AT22: =AQ22*1.03 -> 0 | AW22: =AT22*1.03 -> 0 | AZ22: =AW22*1.03 -> 0 | BC22: =AZ22*1.03 -> 0 | BF22: =BC22*1.03 -> 0 | BI22: =BF22*1.03 -> 0 | BL22: =BI22*1.03 -> 0 | BO22: =BL22*1.03 -> 0 | BR22: =BO22*1.03 -> 0 | BU22: =BR22*1.03 -> 0 | BX22: =BU22*1.03 -> 0 | CA22: =BX22*1.03 -> 0 | CD22: =CA22*1.03 -> 0 | CG22: =CD22*1.03 -> 0 | CJ22: =CG22*1.03 -> 0 | CM22: =CJ22*1.03 -> 0 | CP22: =CM22*1.03 -> 0
A23: - Electric | D23: =Inputs!B75 -> 0 | G23: =D23*1.03 -> 0 | J23: =G23*1.03 -> 0 | M23: =J23*1.03 -> 0 | P23: =M23*1.03 -> 0 | S23: =P23*1.03 -> 0 | V23: =S23*1.03 -> 0 | Y23: =V23*1.03 -> 0 | AB23: =Y23*1.03 -> 0 | AE23: =AB23*1.03 -> 0 | AH23: =AE23*1.03 -> 0 | AK23: =AH23*1.03 -> 0 | AN23: =AK23*1.03 -> 0 | AQ23: =AN23*1.03 -> 0 | AT23: =AQ23*1.03 -> 0 | AW23: =AT23*1.03 -> 0 | AZ23: =AW23*1.03 -> 0 | BC23: =AZ23*1.03 -> 0 | BF23: =BC23*1.03 -> 0 | BI23: =BF23*1.03 -> 0 | BL23: =BI23*1.03 -> 0 | BO23: =BL23*1.03 -> 0 | BR23: =BO23*1.03 -> 0 | BU23: =BR23*1.03 -> 0 | BX23: =BU23*1.03 -> 0 | CA23: =BX23*1.03 -> 0 | CD23: =CA23*1.03 -> 0 | CG23: =CD23*1.03 -> 0 | CJ23: =CG23*1.03 -> 0 | CM23: =CJ23*1.03 -> 0 | CP23: =CM23*1.03 -> 0
A24: Landscaping | D24: =Inputs!B76 -> 0 | G24: =D24*1.03 -> 0 | J24: =G24*1.03 -> 0 | M24: =J24*1.03 -> 0 | P24: =M24*1.03 -> 0 | S24: =P24*1.03 -> 0 | V24: =S24*1.03 -> 0 | Y24: =V24*1.03 -> 0 | AB24: =Y24*1.03 -> 0 | AE24: =AB24*1.03 -> 0 | AH24: =AE24*1.03 -> 0 | AK24: =AH24*1.03 -> 0 | AN24: =AK24*1.03 -> 0 | AQ24: =AN24*1.03 -> 0 | AT24: =AQ24*1.03 -> 0 | AW24: =AT24*1.03 -> 0 | AZ24: =AW24*1.03 -> 0 | BC24: =AZ24*1.03 -> 0 | BF24: =BC24*1.03 -> 0 | BI24: =BF24*1.03 -> 0 | BL24: =BI24*1.03 -> 0 | BO24: =BL24*1.03 -> 0 | BR24: =BO24*1.03 -> 0 | BU24: =BR24*1.03 -> 0 | BX24: =BU24*1.03 -> 0 | CA24: =BX24*1.03 -> 0 | CD24: =CA24*1.03 -> 0 | CG24: =CD24*1.03 -> 0 | CJ24: =CG24*1.03 -> 0 | CM24: =CJ24*1.03 -> 0 | CP24: =CM24*1.03 -> 0
A25: =Inputs!A77 -> Other | D25: =Inputs!B77 -> 0 | G25: 0 | J25: 0 | M25: 0 | P25: 0 | S25: 0 | V25: 0 | Y25: 0 | AB25: 0 | AE25: 0 | AH25: 0 | AK25: 0 | AN25: 0 | AQ25: 0 | AT25: 0 | AW25: 0 | AZ25: 0 | BC25: 0 | BF25: 0 | BI25: 0 | BL25: 0 | BO25: 0 | BR25: 0 | BU25: 0 | BX25: 0 | CA25: 0 | CD25: 0 | CG25: 0 | CJ25: 0 | CM25: 0 | CP25: 0
A26: =Inputs!A78 -> Other | D26: =Inputs!B78 -> 0 | G26: =D26*1.03 -> 0 | J26: =G26*1.03 -> 0 | M26: 0 | P26: 0 | S26: 0 | V26: 0 | Y26: 0 | AB26: 0 | AE26: 0 | AH26: 0 | AK26: 0 | AN26: 0 | AQ26: 0 | AT26: 0 | AW26: 0 | AZ26: 0 | BC26: 0 | BF26: 0 | BI26: 0 | BL26: 0 | BO26: 0 | BR26: 0 | BU26: 0 | BX26: 0 | CA26: 0 | CD26: 0 | CG26: 0 | CJ26: 0 | CM26: 0 | CP26: 0
A27: Total Annual Expenses | D27: =SUM(D15:D26) -> 10052 | G27: =SUM(G15:G26) -> 10389.08 | J27: =SUM(J15:J26) -> 10700.7524 | M27: =SUM(M15:M26) -> 11021.77497 | P27: =SUM(P15:P26) -> 11352.42822 | S27: =SUM(S15:S26) -> 11693.00107 | V27: =SUM(V15:V26) -> 12043.7911 | Y27: =SUM(Y15:Y26) -> 12405.10483 | AB27: =SUM(AB15:AB26) -> 12777.25798 | AE27: =SUM(AE15:AE26) -> 13160.57572 | AH27: =SUM(AH15:AH26) -> 13555.39299 | AK27: =SUM(AK15:AK26) -> 13962.05478 | AN27: =SUM(AN15:AN26) -> 14380.91642 | AQ27: =SUM(AQ15:AQ26) -> 14812.34391 | AT27: =SUM(AT15:AT26) -> 15256.71423 | AW27: =SUM(AW15:AW26) -> 15714.41566 | AZ27: =SUM(AZ15:AZ26) -> 16185.84813 | BC27: =SUM(BC15:BC26) -> 16671.42357 | BF27: =SUM(BF15:BF26) -> 17171.56628 | BI27: =SUM(BI15:BI26) -> 17686.71327 | BL27: =SUM(BL15:BL26) -> 18217.31467 | BO27: =SUM(BO15:BO26) -> 18763.83411 | BR27: =SUM(BR15:BR26) -> 19326.74913 | BU27: =SUM(BU15:BU26) -> 19906.5516 | BX27: =SUM(BX15:BX26) -> 20503.74815 | CA27: =SUM(CA15:CA26) -> 21118.8606 | CD27: =SUM(CD15:CD26) -> 21752.42641 | CG27: =SUM(CG15:CG26) -> 22404.99921 | CJ27: =SUM(CJ15:CJ26) -> 23077.14918 | CM27: =SUM(CM15:CM26) -> 23769.46366 | CP27: =SUM(CP15:CP26) -> 24482.54757
A29: Net Operating Income | D29: =D12-D27 -> 32128 | G29: =G12-G27 -> 33478.12 | J29: =J12-J27 -> 34921.1356 | M29: =M12-M27 -> 36424.98855 | P29: =P12-P27 -> 37992.20584 | S29: =S12-S27 -> 39625.41836 | V29: =V12-V27 -> 41327.3651 | Y29: =Y12-Y27 -> 43100.89762 | AB29: =AB12-AB27 -> 44948.98457 | AE29: =AE12-AE27 -> 46874.71653 | AH29: =AH12-AH27 -> 48881.31095 | AK29: =AK12-AK27 -> 50972.11732 | AN29: =AN12-AN27 -> 53150.62256 | AQ29: =AQ12-AQ27 -> 55420.45662 | AT29: =AT12-AT27 -> 57785.39833 | AW29: =AW12-AW27 -> 60249.3814 | AZ29: =AZ12-AZ27 -> 62816.50082 | BC29: =BC12-BC27 -> 65491.01933 | BF29: =BF12-BF27 -> 68277.37434 | BI29: =BI12-BI27 -> 71180.18498 | BL29: =BL12-BL27 -> 74204.25951 | BO29: =BO12-BO27 -> 77354.60303 | BR29: =BR12-BR27 -> 80636.4255 | BU29: =BU12-BU27 -> 84055.15001 | BX29: =BX12-BX27 -> 87616.42152 | CA29: =CA12-CA27 -> 91326.11587 | CD29: =CD12-CD27 -> 95190.34911 | CG29: =CG12-CG27 -> 99215.48734 | CJ29: =CJ12-CJ27 -> 103408.1568 | CM29: =CM12-CM27 -> 107775.2546 | CP29: =CP12-CP27 -> 112323.9594
A31: Less: Annual Mortgage Payments | D31: =IF(D37>0,PMT(Inputs!B35/12,Inputs!B36*12,Inputs!B29,0)*12,0) -> -52186.07917 | G31: =IF(D37>0,PMT(Inputs!$B$35/12,Inputs!$B$36*12,Inputs!$B$29,0)*12,0) -> -52186.07917 | J31: =IF(G37>0,PMT(Inputs!$B$35/12,Inputs!$B$36*12,Inputs!$B$29,0)*12,0) -> -52186.07917 | M31: =IF(J37>0,PMT(Inputs!$B$35/12,Inputs!$B$36*12,Inputs!$B$29,0)*12,0) -> -52186.07917 | P31: =IF(M37>0,PMT(Inputs!$B$35/12,Inputs!$B$36*12,Inputs!$B$29,0)*12,0) -> -52186.07917 | S31: =IF(P37>0,PMT(Inputs!$B$35/12,Inputs!$B$36*12,Inputs!$B$29,0)*12,0) -> -52186.07917 | V31: =IF(S37>0,PMT(Inputs!$B$35/12,Inputs!$B$36*12,Inputs!$B$29,0)*12,0) -> -52186.07917 | Y31: =IF(V37>0,PMT(Inputs!$B$35/12,Inputs!$B$36*12,Inputs!$B$29,0)*12,0) -> -52186.07917 | AB31: =IF(Y37>0,PMT(Inputs!$B$35/12,Inputs!$B$36*12,Inputs!$B$29,0)*12,0) -> -52186.07917 | AE31: =IF(AB37>0,PMT(Inputs!$B$35/12,Inputs!$B$36*12,Inputs!$B$29,0)*12,0) -> -52186.07917 | AH31: =IF(AE37>0,PMT(Inputs!$B$35/12,Inputs!$B$36*12,Inputs!$B$29,0)*12,0) -> -52186.07917 | AK31: =IF(AH37>0,PMT(Inputs!$B$35/12,Inputs!$B$36*12,Inputs!$B$29,0)*12,0) -> -52186.07917 | AN31: =IF(AK37>0,PMT(Inputs!$B$35/12,Inputs!$B$36*12,Inputs!$B$29,0)*12,0) -> -52186.07917 | AQ31: =IF(AN37>0,PMT(Inputs!$B$35/12,Inputs!$B$36*12,Inputs!$B$29,0)*12,0) -> -52186.07917 | AT31: =IF(AQ37>0,PMT(Inputs!$B$35/12,Inputs!$B$36*12,Inputs!$B$29,0)*12,0) -> -52186.07917 | AW31: =IF(AT37>0,PMT(Inputs!$B$35/12,Inputs!$B$36*12,Inputs!$B$29,0)*12,0) -> -52186.07917 | AZ31: =IF(AW37>0,PMT(Inputs!$B$35/12,Inputs!$B$36*12,Inputs!$B$29,0)*12,0) -> -52186.07917 | BC31: =IF(AZ37>0,PMT(Inputs!$B$35/12,Inputs!$B$36*12,Inputs!$B$29,0)*12,0) -> -52186.07917 | BF31: =IF(BC37>0,PMT(Inputs!$B$35/12,Inputs!$B$36*12,Inputs!$B$29,0)*12,0) -> -52186.07917 | BI31: =IF(BF37>0,PMT(Inputs!$B$35/12,Inputs!$B$36*12,Inputs!$B$29,0)*12,0) -> -52186.07917 | BL31: =IF(BI37>0,PMT(Inputs!$B$35/12,Inputs!$B$36*12,Inputs!$B$29,0)*12,0) -> -52186.07917 | BO31: =IF(BL37>0,PMT(Inputs!$B$35/12,Inputs!$B$36*12,Inputs!$B$29,0)*12,0) -> -52186.07917 | BR31: =IF(BO37>0,PMT(Inputs!$B$35/12,Inputs!$B$36*12,Inputs!$B$29,0)*12,0) -> -52186.07917 | BU31: =IF(BR37>0,PMT(Inputs!$B$35/12,Inputs!$B$36*12,Inputs!$B$29,0)*12,0) -> -52186.07917 | BX31: =IF(BU37>0,PMT(Inputs!$B$35/12,Inputs!$B$36*12,Inputs!$B$29,0)*12,0) -> -52186.07917 | CA31: =IF(BX37>0,PMT(Inputs!$B$35/12,Inputs!$B$36*12,Inputs!$B$29,0)*12,0) -> -52186.07917 | CD31: =IF(CA37>0,PMT(Inputs!$B$35/12,Inputs!$B$36*12,Inputs!$B$29,0)*12,0) -> -52186.07917 | CG31: =IF(CD37>0,PMT(Inputs!$B$35/12,Inputs!$B$36*12,Inputs!$B$29,0)*12,0) -> -52186.07917 | CJ31: =IF(CG37>0,PMT(Inputs!$B$35/12,Inputs!$B$36*12,Inputs!$B$29,0)*12,0) -> -52186.07917 | CM31: =IF(CJ37>0,PMT(Inputs!$B$35/12,Inputs!$B$36*12,Inputs!$B$29,0)*12,0) -> -52186.07917 | CP31: 0
A32: Less: Annual Mortgage Insurance | D32: =-Inputs!B37*12 -> 0 | G32: =IF((D37/$M$2)>0.8,D32,0) -> 0 | J32: =IF((G37/$M$2)>0.8,G32,0) -> 0 | M32: =IF((J37/$M$2)>0.8,J32,0) -> 0 | P32: =IF((M37/$M$2)>0.8,M32,0) -> 0 | S32: =IF((P37/$M$2)>0.8,P32,0) -> 0 | V32: =IF((S37/$M$2)>0.8,S32,0) -> 0 | Y32: =IF((V37/$M$2)>0.8,V32,0) -> 0 | AB32: =IF((Y37/$M$2)>0.8,Y32,0) -> 0 | AE32: =IF((AB37/$M$2)>0.8,AB32,0) -> 0 | AH32: =IF((AE37/$M$2)>0.8,AE32,0) -> 0 | AK32: =IF((AH37/$M$2)>0.8,AH32,0) -> 0 | AN32: =IF((AK37/$M$2)>0.8,AK32,0) -> 0 | AQ32: =IF((AN37/$M$2)>0.8,AN32,0) -> 0 | AT32: =IF((AQ37/$M$2)>0.8,AQ32,0) -> 0 | AW32: =IF((AT37/$M$2)>0.8,AT32,0) -> 0 | AZ32: =IF((AW37/$M$2)>0.8,AW32,0) -> 0 | BC32: =IF((AZ37/$M$2)>0.8,AZ32,0) -> 0 | BF32: =IF((BC37/$M$2)>0.8,BC32,0) -> 0 | BI32: =IF((BF37/$M$2)>0.8,BF32,0) -> 0 | BL32: =IF((BI37/$M$2)>0.8,BI32,0) -> 0 | BO32: =IF((BL37/$M$2)>0.8,BL32,0) -> 0 | BR32: =IF((BO37/$M$2)>0.8,BO32,0) -> 0 | BU32: =IF((BR37/$M$2)>0.8,BR32,0) -> 0 | BX32: =IF((BU37/$M$2)>0.8,BU32,0) -> 0 | CA32: =IF((BX37/$M$2)>0.8,BX32,0) -> 0 | CD32: =IF((CA37/$M$2)>0.8,CA32,0) -> 0 | CG32: =IF((CD37/$M$2)>0.8,CD32,0) -> 0 | CJ32: =IF((CG37/$M$2)>0.8,CG32,0) -> 0 | CM32: =IF((CJ37/$M$2)>0.8,CJ32,0) -> 0 | CP32: =IF((CM37/$M$2)>0.8,CM32,0) -> 0
A34: Annual Cash Flow Before Taxes | D34: =D29+D31+D32 -> -20058.07917 | G34: =G29+G31+G32 -> -18707.95917 | J34: =J29+J31+J32 -> -17264.94357 | M34: =M29+M31+M32 -> -15761.09062 | P34: =P29+P31+P32 -> -14193.87333 | S34: =S29+S31+S32 -> -12560.66081 | V34: =V29+V31+V32 -> -10858.71407 | Y34: =Y29+Y31+Y32 -> -9085.181554 | AB34: =AB29+AB31+AB32 -> -7237.094601 | AE34: =AE29+AE31+AE32 -> -5311.362639 | AH34: =AH29+AH31+AH32 -> -3304.76822 | AK34: =AK29+AK31+AK32 -> -1213.961852 | AN34: =AN29+AN31+AN32 -> 964.543388 | AQ34: =AQ29+AQ31+AQ32 -> 3234.377455 | AT34: =AT29+AT31+AT32 -> 5599.319159 | AW34: =AW29+AW31+AW32 -> 8063.302234 | AZ34: =AZ29+AZ31+AZ32 -> 10630.42165 | BC34: =BC29+BC31+BC32 -> 13304.94016 | BF34: =BF29+BF31+BF32 -> 16091.29517 | BI34: =BI29+BI31+BI32 -> 18994.10581 | BL34: =BL29+BL31+BL32 -> 22018.18034 | BO34: =BO29+BO31+BO32 -> 25168.52386 | BR34: =BR29+BR31+BR32 -> 28450.34633 | BU34: =BU29+BU31+BU32 -> 31869.07084 | BX34: =BX29+BX31+BX32 -> 35430.34235 | CA34: =CA29+CA31+CA32 -> 39140.0367 | CD34: =CD29+CD31+CD32 -> 43004.26994 | CG34: =CG29+CG31+CG32 -> 47029.40817 | CJ34: =CJ29+CJ31+CJ32 -> 51222.07765 | CM34: =CM29+CM31+CM32 -> 55589.17542 | CP34: =CP29+CP31+CP32 -> 112323.9594
A36: Property Value at End of Year | D36: =Inputs!B24*(1+Inputs!B49) -> 746750 | G36: =D36*(1+Inputs!$B$49) -> 769152.5 | J36: =G36*(1+Inputs!$B$49) -> 792227.075 | M36: =J36*(1+Inputs!$B$49) -> 815993.8873 | P36: =M36*(1+Inputs!$B$49) -> 840473.7039 | S36: =P36*(1+Inputs!$B$49) -> 865687.915 | V36: =S36*(1+Inputs!$B$49) -> 891658.5524 | Y36: =V36*(1+Inputs!$B$49) -> 918408.309 | AB36: =Y36*(1+Inputs!$B$49) -> 945960.5583 | AE36: =AB36*(1+Inputs!$B$49) -> 974339.375 | AH36: =AE36*(1+Inputs!$B$49) -> 1003569.556 | AK36: =AH36*(1+Inputs!$B$49) -> 1033676.643 | AN36: =AK36*(1+Inputs!$B$49) -> 1064686.942 | AQ36: =AN36*(1+Inputs!$B$49) -> 1096627.551 | AT36: =AQ36*(1+Inputs!$B$49) -> 1129526.377 | AW36: =AT36*(1+Inputs!$B$49) -> 1163412.168 | AZ36: =AW36*(1+Inputs!$B$49) -> 1198314.533 | BC36: =AZ36*(1+Inputs!$B$49) -> 1234263.969 | BF36: =BC36*(1+Inputs!$B$49) -> 1271291.888 | BI36: =BF36*(1+Inputs!$B$49) -> 1309430.645 | BL36: =BI36*(1+Inputs!$B$49) -> 1348713.564 | BO36: =BL36*(1+Inputs!$B$49) -> 1389174.971 | BR36: =BO36*(1+Inputs!$B$49) -> 1430850.221 | BU36: =BR36*(1+Inputs!$B$49) -> 1473775.727 | BX36: =BU36*(1+Inputs!$B$49) -> 1517988.999 | CA36: =BX36*(1+Inputs!$B$49) -> 1563528.669 | CD36: =CA36*(1+Inputs!$B$49) -> 1610434.529 | CG36: =CD36*(1+Inputs!$B$49) -> 1658747.565 | CJ36: =CG36*(1+Inputs!$B$49) -> 1708509.992 | CM36: =CJ36*(1+Inputs!$B$49) -> 1759765.292 | CP36: =CM36*(1+Inputs!$B$49) -> 1812558.25
A37: Mortgage Balance at End of Year | D37: =Inputs!B29+CUMPRINC(Inputs!$B$35/12,Inputs!$B$36*12,Inputs!$B$29,1,12,0) -> 681037.0487 | G37: =D37+CUMPRINC(Inputs!$B$35/12,Inputs!$B$36*12,Inputs!$B$29,13,24,0) -> 672808.3652 | J37: =G37+CUMPRINC(Inputs!$B$35/12,Inputs!$B$36*12,Inputs!$B$29,25,36,0) -> 664029.4648 | M37: =J37+CUMPRINC(Inputs!$B$35/12,Inputs!$B$36*12,Inputs!$B$29,37,48,0) -> 654663.5567 | P37: =M37+CUMPRINC(Inputs!$B$35/12,Inputs!$B$36*12,Inputs!$B$29,49,60,0) -> 644671.3903 | S37: =P37+CUMPRINC(Inputs!$B$35/12,Inputs!$B$36*12,Inputs!$B$29,61,72,0) -> 634011.0904 | V37: =S37+CUMPRINC(Inputs!$B$35/12,Inputs!$B$36*12,Inputs!$B$29,73,84,0) -> 622637.9817 | Y37: =V37+CUMPRINC(Inputs!$B$35/12,Inputs!$B$36*12,Inputs!$B$29,85,96,0) -> 610504.4017 | AB37: =Y37+CUMPRINC(Inputs!$B$35/12,Inputs!$B$36*12,Inputs!$B$29,97,108,0) -> 597559.501 | AE37: =AB37+CUMPRINC(Inputs!$B$35/12,Inputs!$B$36*12,Inputs!$B$29,109,120,0) -> 583749.03 | AH37: =AE37+CUMPRINC(Inputs!$B$35/12,Inputs!$B$36*12,Inputs!$B$29,121,132,0) -> 569015.1117 | AK37: =AH37+CUMPRINC(Inputs!$B$35/12,Inputs!$B$36*12,Inputs!$B$29,133,144,0) -> 553295.9992 | AN37: =AK37+CUMPRINC(Inputs!$B$35/12,Inputs!$B$36*12,Inputs!$B$29,145,156,0) -> 536525.8166 | AQ37: =AN37+CUMPRINC(Inputs!$B$35/12,Inputs!$B$36*12,Inputs!$B$29,157,168,0) -> 518634.2835 | AT37: =AQ37+CUMPRINC(Inputs!$B$35/12,Inputs!$B$36*12,Inputs!$B$29,169,180,0) -> 499546.4198 | AW37: =AT37+CUMPRINC(Inputs!$B$35/12,Inputs!$B$36*12,Inputs!$B$29,181,192,0) -> 479182.2321 | AZ37: =AW37+CUMPRINC(Inputs!$B$35/12,Inputs!$B$36*12,Inputs!$B$29,193,204,0) -> 457456.3781 | BC37: =AZ37+CUMPRINC(Inputs!$B$35/12,Inputs!$B$36*12,Inputs!$B$29,205,216,0) -> 434277.8089 | BF37: =BC37+CUMPRINC(Inputs!$B$35/12,Inputs!$B$36*12,Inputs!$B$29,217,228,0) -> 409549.3876 | BI37: =BF37+CUMPRINC(Inputs!$B$35/12,Inputs!$B$36*12,Inputs!$B$29,229,240,0) -> 383167.4823 | BL37: =BI37+CUMPRINC(Inputs!$B$35/12,Inputs!$B$36*12,Inputs!$B$29,241,252,0) -> 355021.5315 | BO37: =BL37+CUMPRINC(Inputs!$B$35/12,Inputs!$B$36*12,Inputs!$B$29,253,264,0) -> 324993.581 | BR37: =BO37+CUMPRINC(Inputs!$B$35/12,Inputs!$B$36*12,Inputs!$B$29,265,276,0) -> 292957.7895 | BU37: =BR37+CUMPRINC(Inputs!$B$35/12,Inputs!$B$36*12,Inputs!$B$29,277,288,0) -> 258779.9014 | BX37: =BU37+CUMPRINC(Inputs!$B$35/12,Inputs!$B$36*12,Inputs!$B$29,289,300,0) -> 222316.6836 | CA37: =BX37+CUMPRINC(Inputs!$B$35/12,Inputs!$B$36*12,Inputs!$B$29,301,312,0) -> 183415.326 | CD37: =CA37+CUMPRINC(Inputs!$B$35/12,Inputs!$B$36*12,Inputs!$B$29,313,324,0) -> 141912.8005 | CG37: =CD37+CUMPRINC(Inputs!$B$35/12,Inputs!$B$36*12,Inputs!$B$29,325,336,0) -> 97635.17823 | CJ37: =CG37+CUMPRINC(Inputs!$B$35/12,Inputs!$B$36*12,Inputs!$B$29,337,348,0) -> 50396.90019 | CM37: =CJ37+CUMPRINC(Inputs!$B$35/12,Inputs!$B$36*12,Inputs!$B$29,349,360,0) -> 0 | CP37: 0
A38: Total Equity | D38: =D36-D37 -> 65712.95131 | G38: =G36-G37 -> 96344.13478 | J38: =J36-J37 -> 128197.6102 | M38: =M36-M37 -> 161330.3305 | P38: =P36-P37 -> 195802.3135 | S38: =S36-S37 -> 231676.8246 | V38: =V36-V37 -> 269020.5707 | Y38: =Y36-Y37 -> 307903.9073 | AB38: =AB36-AB37 -> 348401.0572 | AE38: =AE36-AE37 -> 390590.345 | AH38: =AH36-AH37 -> 434554.4445 | AK38: =AK36-AK37 -> 480380.6438 | AN38: =AN36-AN37 -> 528161.1257 | AQ38: =AQ36-AQ37 -> 577993.2671 | AT38: =AT36-AT37 -> 629979.9572 | AW38: =AW36-AW37 -> 684229.9362 | AZ38: =AZ36-AZ37 -> 740858.1553 | BC38: =BC36-BC37 -> 799986.1605 | BF38: =BF36-BF37 -> 861742.5009 | BI38: =BI36-BI37 -> 926263.1629 | BL38: =BL36-BL37 -> 993692.033 | BO38: =BO36-BO37 -> 1064181.39 | BR38: =BR36-BR37 -> 1137892.431 | BU38: =BU36-BU37 -> 1214995.826 | BX38: =BX36-BX37 -> 1295672.315 | CA38: =CA36-CA37 -> 1380113.343 | CD38: =CD36-CD37 -> 1468521.729 | CG38: =CG36-CG37 -> 1561112.387 | CJ38: =CJ36-CJ37 -> 1658113.092 | CM38: =CM36-CM37 -> 1759765.292 | CP38: =CP36-CP37 -> 1812558.25
A40: ROI QuadrantTM
A41: Appreciation | D41: =D36-$M$2 -> 21750 | E41: =(D36-$M$2)/$M$7 -> 0.3690193417 | G41: =G36-D36 -> 22402.5 | H41: =(G36-D36)/$M$7 -> 0.380089922 | J41: =J36-G36 -> 23074.575 | K41: =(J36-G36)/$M$7 -> 0.3914926196 | M41: =M36-J36 -> 23766.81225 | N41: =(M36-J36)/$M$7 -> 0.4032373982 | P41: =P36-M36 -> 24479.81662 | Q41: =(P36-M36)/$M$7 -> 0.4153345201 | S41: =S36-P36 -> 25214.21112 | T41: =(S36-P36)/$M$7 -> 0.4277945558 | V41: =V36-S36 -> 25970.63745 | W41: =(V36-S36)/$M$7 -> 0.4406283924 | Y41: =Y36-V36 -> 26749.75657 | Z41: =(Y36-V36)/$M$7 -> 0.4538472442 | AB41: =AB36-Y36 -> 27552.24927 | AC41: =(AB36-Y36)/$M$7 -> 0.4674626615 | AE41: =AE36-AB36 -> 28378.81675 | AF41: =(AE36-AB36)/$M$7 -> 0.4814865414 | AH41: =AH36-AE36 -> 29230.18125 | AI41: =(AH36-AE36)/$M$7 -> 0.4959311376 | AK41: =AK36-AH36 -> 30107.08669 | AL41: =(AK36-AH36)/$M$7 -> 0.5108090717 | AN41: =AN36-AK36 -> 31010.29929 | AO41: =(AN36-AK36)/$M$7 -> 0.5261333439 | AQ41: =AQ36-AN36 -> 31940.60827 | AR41: =(AQ36-AN36)/$M$7 -> 0.5419173442 | AT41: =AT36-AQ36 -> 32898.82652 | AU41: =(AT36-AQ36)/$M$7 -> 0.5581748645 | AW41: =AW36-AT36 -> 33885.79131 | AX41: =(AW36-AT36)/$M$7 -> 0.5749201105 | AZ41: =AZ36-AW36 -> 34902.36505 | BA41: =(AZ36-AW36)/$M$7 -> 0.5921677138 | BC41: =BC36-AZ36 -> 35949.436 | BD41: =(BC36-AZ36)/$M$7 -> 0.6099327452 | BF41: =BF36-BC36 -> 37027.91908 | BG41: =(BF36-BC36)/$M$7 -> 0.6282307276 | BI41: =BI36-BF36 -> 38138.75665 | BJ41: =(BI36-BF36)/$M$7 -> 0.6470776494 | BL41: =BL36-BI36 -> 39282.91935 | BM41: =(BL36-BI36)/$M$7 -> 0.6664899789 | BO41: =BO36-BL36 -> 40461.40693 | BP41: =(BO36-BL36)/$M$7 -> 0.6864846782 | BR41: =BR36-BO36 -> 41675.24914 | BS41: =(BR36-BO36)/$M$7 -> 0.7070792186 | BU41: =BU36-BR36 -> 42925.50662 | BV41: =(BU36-BR36)/$M$7 -> 0.7282915951 | BX41: =BX36-BU36 -> 44213.27182 | BY41: =(BX36-BU36)/$M$7 -> 0.750140343 | CA41: =CA36-BX36 -> 45539.66997 | CB41: =(CA36-BX36)/$M$7 -> 0.7726445533 | CD41: =CD36-CA36 -> 46905.86007 | CE41: =(CD36-CA36)/$M$7 -> 0.7958238899 | CG41: =CG36-CD36 -> 48313.03587 | CH41: =(CG36-CD36)/$M$7 -> 0.8196986066 | CJ41: =CJ36-CG36 -> 49762.42695 | CK41: =(CJ36-CG36)/$M$7 -> 0.8442895648 | CM41: =CM36-CJ36 -> 51255.29976 | CN41: =(CM36-CJ36)/$M$7 -> 0.8696182517 | CP41: =CP36-CM36 -> 52792.95875 | CQ41: =(CP36-CM36)/$M$7 -> 0.8957067993
A42: Cash Flow | D42: =D34 -> -20058.07917 | E42: =D34/$M$7 -> -0.3403135251 | G42: =G34 -> -18707.95917 | H42: =G34/$M$7 -> -0.3174068403 | J42: =J34 -> -17264.94357 | K42: =J34/$M$7 -> -0.2929240511 | M42: =M34 -> -15761.09062 | N42: =M34/$M$7 -> -0.2674090706 | P42: =P34 -> -14193.87333 | Q42: =P34/$M$7 -> -0.2408190249 | S42: =S34 -> -12560.66081 | T42: =S34/$M$7 -> -0.2131092775 | V42: =V34 -> -10858.71407 | W42: =V34/$M$7 -> -0.1842333571 | Y42: =Y34 -> -9085.181554 | Z42: =Y34/$M$7 -> -0.1541428835 | AB42: =AB34 -> -7237.094601 | AC42: =AB34/$M$7 -> -0.122787489 | AE42: =AE34 -> -5311.362639 | AF42: =AE34/$M$7 -> -0.09011473768 | AH42: =AH34 -> -3304.76822 | AI42: =AH34/$M$7 -> -0.05607004106 | AK42: =AK34 -> -1213.961852 | AL42: =AK34/$M$7 -> -0.02059657028 | AN42: =AN34 -> 964.543388 | AO42: =AN34/$M$7 -> 0.01636483522 | AQ42: =AQ34 -> 3234.377455 | AR42: =AQ34/$M$7 -> 0.05487576272 | AT42: =AT34 -> 5599.319159 | AU42: =AT34/$M$7 -> 0.09500032505 | AW42: =AW34 -> 8063.302234 | AX42: =AW34/$M$7 -> 0.1368052636 | AZ42: =AZ34 -> 10630.42165 | BA42: =AZ34/$M$7 -> 0.1803600551 | BC42: =BC34 -> 13304.94016 | BD42: =BC34/$M$7 -> 0.2257370234 | BF42: =BF34 -> 16091.29517 | BG42: =BF34/$M$7 -> 0.2730114552 | BI42: =BI34 -> 18994.10581 | BJ42: =BI34/$M$7 -> 0.3222617205 | BL42: =BL34 -> 22018.18034 | BM42: =BL34/$M$7 -> 0.3735693983 | BO42: =BO34 -> 25168.52386 | BP42: =BO34/$M$7 -> 0.4270194073 | BR42: =BR34 -> 28450.34633 | BS42: =BR34/$M$7 -> 0.4827001413 | BU42: =BU34 -> 31869.07084 | BV42: =BU34/$M$7 -> 0.5407036111 | BX42: =BX34 -> 35430.34235 | BY42: =BX34/$M$7 -> 0.6011255914 | CA42: =CA34 -> 39140.0367 | CB42: =CA34/$M$7 -> 0.6640657736 | CD42: =CD34 -> 43004.26994 | CE42: =CD34/$M$7 -> 0.7296279256 | CG42: =CG34 -> 47029.40817 | CH42: =CG34/$M$7 -> 0.7979200571 | CJ42: =CJ34 -> 51222.07765 | CK42: =CJ34/$M$7 -> 0.869054592 | CM42: =CM34 -> 55589.17542 | CN42: =CM34/$M$7 -> 0.943148548 | CP42: =CP34 -> 112323.9594 | CQ42: =CP34/$M$7 -> 1.905733957
A43: Debt Paydown | D43: =M3-$D$37 -> 7712.951314 | E43: =(M3-D37)/M7 -> 0.1308610674 | G43: =D37-G37 -> 8228.683469 | H43: =(D37-G37)/$M$7 -> 0.1396111888 | J43: =G37-J37 -> 8778.900433 | K43: =(G37-J37)/$M$7 -> 0.1489463935 | M43: =J37-M37 -> 9365.908058 | N43: =(J37-M37)/$M$7 -> 0.1589058035 | P43: =M37-P37 -> 9992.16638 | Q43: =(M37-P37)/$M$7 -> 0.1695311568 | S43: =P37-S37 -> 10660.29992 | T43: =(P37-S37)/$M$7 -> 0.1808669821 | V43: =S37-V37 -> 11373.10871 | W43: =(S37-V37)/$M$7 -> 0.1929607857 | Y43: =V37-Y37 -> 12133.57998 | Z43: =(V37-Y37)/$M$7 -> 0.2058632503 | AB43: =Y37-AB37 -> 12944.90071 | AC43: =(Y37-AB37)/$M$7 -> 0.2196284478 | AE43: =AB37-AE37 -> 13810.47101 | AF43: =(AB37-AE37)/$M$7 -> 0.2343140653 | AH43: =AE37-AH37 -> 14733.91829 | AI43: =(AE37-AH37)/$M$7 -> 0.2499816473 | AK43: =AH37-AK37 -> 15719.11256 | AL43: =(AH37-AK37)/$M$7 -> 0.2666968538 | AN43: =AK37-AN37 -> 16770.18257 | AO43: =(AK37-AN37)/$M$7 -> 0.2845297348 | AQ43: =AN37-AQ37 -> 17891.53314 | AR43: =(AN37-AQ37)/$M$7 -> 0.3035550245 | AT43: =AQ37-AT37 -> 19087.86365 | AU43: =(AQ37-AT37)/$M$7 -> 0.3238524542 | AW43: =AT37-AW37 -> 20364.18767 | AX43: =(AT37-AW37)/$M$7 -> 0.3455070864 | AZ43: =AW37-AZ37 -> 21725.85404 | BA43: =(AW37-AZ37)/$M$7 -> 0.3686096715 | BC43: =AZ37-BC37 -> 23178.56922 | BD43: =(AZ37-BC37)/$M$7 -> 0.3932570279 | BF43: =BC37-BF37 -> 24728.42128 | BG43: =(BC37-BF37)/$M$7 -> 0.4195524479 | BI43: =BF37-BI37 -> 26381.90533 | BJ43: =(BF37-BI37)/$M$7 -> 0.4476061305 | BL43: =BI37-BL37 -> 28145.95081 | BM43: =(BI37-BL37)/$M$7 -> 0.4775356432 | BO43: =BL37-BO37 -> 30027.95048 | BP43: =(BL37-BO37)/$M$7 -> 0.5094664147 | BR43: =BO37-BR37 -> 32035.79145 | BS43: =(BO37-BR37)/$M$7 -> 0.5435322607 | BU43: =BR37-BU37 -> 34177.88817 | BV43: =(BR37-BU37)/$M$7 -> 0.5798759445 | BX43: =BU37-BX37 -> 36463.21777 | BY43: =(BU37-BX37)/$M$7 -> 0.6186497755 | CA43: =BX37-CA37 -> 38901.3576 | CB43: =(BX37-CA37)/$M$7 -> 0.6600162471 | CD43: =CA37-CD37 -> 41502.52545 | CE43: =(CA37-CD37)/$M$7 -> 0.7041487182 | CG43: =CD37-CG37 -> 44277.6223 | CH43: =(CD37-CG37)/$M$7 -> 0.7512321395 | CJ43: =CG37-CJ37 -> 47238.27804 | CK43: =(CG37-CJ37)/$M$7 -> 0.8014638282 | CM43: =CJ37-CM37 -> 50396.90019 | CN43: =(CJ37-CM37)/$M$7 -> 0.8550542958 | CP43: =CM37-CP37 -> 0 | CQ43: =(CM37-CP37)/$M$7 -> 0
A44: Cash Flow From Depreciation | D44: =(Inputs!$B$24*0.85/27.5)*Inputs!$B$51 -> 7170.909091 | E44: =((Inputs!$B$24*0.85/27.5)*Inputs!$B$51)/$M$7 -> 0.1216645587 | G44: =(Inputs!$B$24*0.85/27.5)*Inputs!$B$51 -> 7170.909091 | H44: =((Inputs!$B$24*0.85/27.5)*Inputs!$B$51)/$M$7 -> 0.1216645587 | J44: =(Inputs!$B$24*0.85/27.5)*Inputs!$B$51 -> 7170.909091 | K44: =((Inputs!$B$24*0.85/27.5)*Inputs!$B$51)/$M$7 -> 0.1216645587 | M44: =(Inputs!$B$24*0.85/27.5)*Inputs!$B$51 -> 7170.909091 | N44: =((Inputs!$B$24*0.85/27.5)*Inputs!$B$51)/$M$7 -> 0.1216645587 | P44: =(Inputs!$B$24*0.85/27.5)*Inputs!$B$51 -> 7170.909091 | Q44: =((Inputs!$B$24*0.85/27.5)*Inputs!$B$51)/$M$7 -> 0.1216645587 | S44: =(Inputs!$B$24*0.85/27.5)*Inputs!$B$51 -> 7170.909091 | T44: =((Inputs!$B$24*0.85/27.5)*Inputs!$B$51)/$M$7 -> 0.1216645587 | V44: =(Inputs!$B$24*0.85/27.5)*Inputs!$B$51 -> 7170.909091 | W44: =((Inputs!$B$24*0.85/27.5)*Inputs!$B$51)/$M$7 -> 0.1216645587 | Y44: =(Inputs!$B$24*0.85/27.5)*Inputs!$B$51 -> 7170.909091 | Z44: =((Inputs!$B$24*0.85/27.5)*Inputs!$B$51)/$M$7 -> 0.1216645587 | AB44: =(Inputs!$B$24*0.85/27.5)*Inputs!$B$51 -> 7170.909091 | AC44: =((Inputs!$B$24*0.85/27.5)*Inputs!$B$51)/$M$7 -> 0.1216645587 | AE44: =(Inputs!$B$24*0.85/27.5)*Inputs!$B$51 -> 7170.909091 | AF44: =((Inputs!$B$24*0.85/27.5)*Inputs!$B$51)/$M$7 -> 0.1216645587 | AH44: =(Inputs!$B$24*0.85/27.5)*Inputs!$B$51 -> 7170.909091 | AI44: =((Inputs!$B$24*0.85/27.5)*Inputs!$B$51)/$M$7 -> 0.1216645587 | AK44: =(Inputs!$B$24*0.85/27.5)*Inputs!$B$51 -> 7170.909091 | AL44: =((Inputs!$B$24*0.85/27.5)*Inputs!$B$51)/$M$7 -> 0.1216645587 | AN44: =(Inputs!$B$24*0.85/27.5)*Inputs!$B$51 -> 7170.909091 | AO44: =((Inputs!$B$24*0.85/27.5)*Inputs!$B$51)/$M$7 -> 0.1216645587 | AQ44: =(Inputs!$B$24*0.85/27.5)*Inputs!$B$51 -> 7170.909091 | AR44: =((Inputs!$B$24*0.85/27.5)*Inputs!$B$51)/$M$7 -> 0.1216645587 | AT44: =(Inputs!$B$24*0.85/27.5)*Inputs!$B$51 -> 7170.909091 | AU44: =((Inputs!$B$24*0.85/27.5)*Inputs!$B$51)/$M$7 -> 0.1216645587 | AW44: =(Inputs!$B$24*0.85/27.5)*Inputs!$B$51 -> 7170.909091 | AX44: =((Inputs!$B$24*0.85/27.5)*Inputs!$B$51)/$M$7 -> 0.1216645587 | AZ44: =(Inputs!$B$24*0.85/27.5)*Inputs!$B$51 -> 7170.909091 | BA44: =((Inputs!$B$24*0.85/27.5)*Inputs!$B$51)/$M$7 -> 0.1216645587 | BC44: =(Inputs!$B$24*0.85/27.5)*Inputs!$B$51 -> 7170.909091 | BD44: =((Inputs!$B$24*0.85/27.5)*Inputs!$B$51)/$M$7 -> 0.1216645587 | BF44: =(Inputs!$B$24*0.85/27.5)*Inputs!$B$51 -> 7170.909091 | BG44: =((Inputs!$B$24*0.85/27.5)*Inputs!$B$51)/$M$7 -> 0.1216645587 | BI44: =(Inputs!$B$24*0.85/27.5)*Inputs!$B$51 -> 7170.909091 | BJ44: =((Inputs!$B$24*0.85/27.5)*Inputs!$B$51)/$M$7 -> 0.1216645587 | BL44: =(Inputs!$B$24*0.85/27.5)*Inputs!$B$51 -> 7170.909091 | BM44: =((Inputs!$B$24*0.85/27.5)*Inputs!$B$51)/$M$7 -> 0.1216645587 | BO44: =(Inputs!$B$24*0.85/27.5)*Inputs!$B$51 -> 7170.909091 | BP44: =((Inputs!$B$24*0.85/27.5)*Inputs!$B$51)/$M$7 -> 0.1216645587 | BR44: =(Inputs!$B$24*0.85/27.5)*Inputs!$B$51 -> 7170.909091 | BS44: =((Inputs!$B$24*0.85/27.5)*Inputs!$B$51)/$M$7 -> 0.1216645587 | BU44: =(Inputs!$B$24*0.85/27.5)*Inputs!$B$51 -> 7170.909091 | BV44: =((Inputs!$B$24*0.85/27.5)*Inputs!$B$51)/$M$7 -> 0.1216645587 | BX44: =(Inputs!$B$24*0.85/27.5)*Inputs!$B$51 -> 7170.909091 | BY44: =((Inputs!$B$24*0.85/27.5)*Inputs!$B$51)/$M$7 -> 0.1216645587 | CA44: =(Inputs!$B$24*0.85/27.5)*Inputs!$B$51 -> 7170.909091 | CB44: =((Inputs!$B$24*0.85/27.5)*Inputs!$B$51)/$M$7 -> 0.1216645587 | CD44: =((Inputs!$B$24*0.85/27.5)*Inputs!$B$51)/2 -> 3585.454545 | CE44: =(((Inputs!$B$24*0.85/27.5)*Inputs!$B$51)/2)/$M$7 -> 0.06083227936 | CG44: 0 | CH44: 0 | CJ44: 0 | CK44: 0 | CM44: 0 | CN44: 0 | CP44: 0 | CQ44: 0
A45: Total Return on Investment | D45: =SUM(D41:D44) -> 16575.78124 | E45: =SUM(E41:E44) -> 0.2812314427 | G45: =SUM(G41:G44) -> 19094.13339 | H45: =SUM(H41:H44) -> 0.3239588292 | J45: =SUM(J41:J44) -> 21759.44095 | K45: =SUM(K41:K44) -> 0.3691795208 | M45: =SUM(M41:M44) -> 24542.53878 | N45: =SUM(N41:N44) -> 0.4163986898 | P45: =SUM(P41:P44) -> 27449.01876 | Q45: =SUM(Q41:Q44) -> 0.4657112107 | S45: =SUM(S41:S44) -> 30484.75932 | T45: =SUM(T41:T44) -> 0.5172168191 | V45: =SUM(V41:V44) -> 33655.94118 | W45: =SUM(W41:W44) -> 0.5710203797 | Y45: =SUM(Y41:Y44) -> 36969.06408 | Z45: =SUM(Z41:Z44) -> 0.6272321697 | AB45: =SUM(AB41:AB44) -> 40430.96447 | AC45: =SUM(AC41:AC44) -> 0.685968179 | AE45: =SUM(AE41:AE44) -> 44048.83421 | AF45: =SUM(AF41:AF44) -> 0.7473504277 | AH45: =SUM(AH41:AH44) -> 47830.24041 | AI45: =SUM(AI41:AI44) -> 0.8115073026 | AK45: =SUM(AK41:AK44) -> 51783.14649 | AL45: =SUM(AL41:AL44) -> 0.878573914 | AN45: =SUM(AN41:AN44) -> 55915.93434 | AO45: =SUM(AO41:AO44) -> 0.9486924726 | AQ45: =SUM(AQ41:AQ44) -> 60237.42796 | AR45: =SUM(AR41:AR44) -> 1.02201269 | AT45: =SUM(AT41:AT44) -> 64756.91841 | AU45: =SUM(AU41:AU44) -> 1.098692202 | AW45: =SUM(AW41:AW44) -> 69484.19031 | AX45: =SUM(AX41:AX44) -> 1.178897019 | AZ45: =SUM(AZ41:AZ44) -> 74429.54983 | BA45: =SUM(BA41:BA44) -> 1.262801999 | BC45: =SUM(BC41:BC44) -> 79603.85448 | BD45: =SUM(BD41:BD44) -> 1.350591355 | BF45: =SUM(BF41:BF44) -> 85018.54462 | BG45: =SUM(BG41:BG44) -> 1.442459189 | BI45: =SUM(BI41:BI44) -> 90685.67688 | BJ45: =SUM(BJ41:BJ44) -> 1.538610059 | BL45: =SUM(BL41:BL44) -> 96617.95959 | BM45: =SUM(BM41:BM44) -> 1.639259579 | BO45: =SUM(BO41:BO44) -> 102828.7904 | BP45: =SUM(BP41:BP44) -> 1.744635059 | BR45: =SUM(BR41:BR44) -> 109332.296 | BS45: =SUM(BS41:BS44) -> 1.854976179 | BU45: =SUM(BU41:BU44) -> 116143.3747 | BV45: =SUM(BV41:BV44) -> 1.970535709 | BX45: =SUM(BX41:BX44) -> 123277.741 | BY45: =SUM(BY41:BY44) -> 2.091580269 | CA45: =SUM(CA41:CA44) -> 130751.9734 | CB45: =SUM(CB41:CB44) -> 2.218391133 | CD45: =SUM(CD41:CD44) -> 134998.11 | CE45: =SUM(CE41:CE44) -> 2.290432813 | CG45: =SUM(CG41:CG44) -> 139620.0663 | CH45: =SUM(CH41:CH44) -> 2.368850803 | CJ45: =SUM(CJ41:CJ44) -> 148222.7826 | CK45: =SUM(CK41:CK44) -> 2.514807985 | CM45: =SUM(CM41:CM44) -> 157241.3754 | CN45: =SUM(CN41:CN44) -> 2.667821095 | CP45: =SUM(CP41:CP44) -> 165116.9182 | CQ45: =SUM(CQ41:CQ44) -> 2.801440756
A47: =Inputs!A84 -> This sheet is for informational purposes only. This is not a commitment, approval or guarantee to lend. The figures included in this worksheet are entirely dependent on the information that you input. These figures and calculations are considered accurate, but not guaranteed. Joe Massey and Synergy One Lending do not represent, warrant or guarantee these numbers. James Orr and Real Estate Financial Planner LLC do not represent, warrant or guarantee these numbers. All information is for preliminary analysis and calculations only. Please contact your tax advisor, CPA, financial planner, attorney, insurance agent, real estate agent or other properly licensed professional for additional information as needed. This spreadsheet is copyrighted as of 2011 through present day. Any use modifications or distributions are only with permission of Joe Massey.
B50: =-M7 -> -58940 | D50: =D34*0.7 -> -14040.65542 | G50: =G34*0.7 -> -13095.57142 | J50: =J34*0.7 -> -12085.4605 | M50: =M34*0.7 -> -11032.76344 | P50: =P51+P56 -> 111484.6562 | S50: =IRR(B50:P50) -> 0.005335487614 | T50: IRR
P51: =P34*0.7 -> -9935.711331
P52: =P36*0.93 -> 781640.5446 | Q52: Net Future value after 7% sales cost
P53: =P52-P37 -> 136969.1543 | Q53: Pre Tax Terminal Value
P54: =P52-M2+M5+M6 -> 79330.5446 | Q54: Capital Gain Base
P55: =P54*0.196 -> 15548.78674 | Q55: Capital Gains Tax at 19.6%
P56: =P53-P55 -> 121420.3675 | Q56: After Tax Terminal Value
C60: Year 0 | D60: Year 1 | E60: Year 2 | F60: Year 3 | G60: Year 4 | H60: Year 5 | I60: Year 6 | J60: Year 7 | K60: Year 8 | L60: Year 9 | M60: Year 10 | N60: Year 11 | O60: Year 12 | P60: Year 13 | Q60: Year 14 | R60: Year 15 | S60: Year 16 | T60: Year 17 | U60: Year 18 | V60: Year 19 | W60: Year 20 | X60: Year 21 | Y60: Year 22 | Z60: Year 23 | AA60: Year 24 | AB60: Year 25 | AC60: Year 26 | AD60: Year 27 | AE60: Year 28 | AF60: Year 29 | AG60: Year 30 | AH60: Year 31
B61: Annual Cash Flow Before Taxes | D61: =D34 -> -20058.07917 | E61: =G34 -> -18707.95917 | F61: =J34 -> -17264.94357 | G61: =M34 -> -15761.09062 | H61: =P34 -> -14193.87333 | I61: =S34 -> -12560.66081 | J61: =V34 -> -10858.71407 | K61: =Y34 -> -9085.181554 | L61: =AB34 -> -7237.094601 | M61: =AE34 -> -5311.362639 | N61: =AH34 -> -3304.76822 | O61: =AK34 -> -1213.961852 | P61: =AN34 -> 964.543388 | Q61: =AQ34 -> 3234.377455 | R61: =AT34 -> 5599.319159 | S61: =AW34 -> 8063.302234 | T61: =AZ34 -> 10630.42165 | U61: =BC34 -> 13304.94016 | V61: =BF34 -> 16091.29517 | W61: =BI34 -> 18994.10581 | X61: =BL34 -> 22018.18034 | Y61: =BO34 -> 25168.52386 | Z61: =BR34 -> 28450.34633 | AA61: =BU34 -> 31869.07084 | AB61: =BX34 -> 35430.34235 | AC61: =CA34 -> 39140.0367 | AD61: =CD34 -> 43004.26994 | AE61: =CG34 -> 47029.40817 | AF61: =CJ34 -> 51222.07765 | AG61: =CM34 -> 55589.17542 | AH61: =CP34 -> 112323.9594
B64: ROI QuadrantTM | C64: 0 | D64: 1 | E64: 2 | F64: 3 | G64: 4 | H64: 5 | I64: 6 | J64: 7 | K64: 8 | L64: 9 | M64: 10 | N64: 11 | O64: 12 | P64: 13 | Q64: 14 | R64: 15 | S64: 16 | T64: 17 | U64: 18 | V64: 19 | W64: 20 | X64: 21 | Y64: 22 | Z64: 23 | AA64: 24 | AB64: 25 | AC64: 26 | AD64: 27 | AE64: 28 | AF64: 29 | AG64: 30 | AH64: 31
B65: Appreciation | C65: 0 | D65: =D41 -> 21750 | E65: =G41 -> 22402.5 | F65: =J41 -> 23074.575 | G65: =M41 -> 23766.81225 | H65: =P41 -> 24479.81662 | I65: =S41 -> 25214.21112 | J65: =V41 -> 25970.63745 | K65: =Y41 -> 26749.75657 | L65: =AB41 -> 27552.24927 | M65: =AE41 -> 28378.81675 | N65: =AH41 -> 29230.18125 | O65: =AK41 -> 30107.08669 | P65: =AN41 -> 31010.29929 | Q65: =AQ41 -> 31940.60827 | R65: =AT41 -> 32898.82652 | S65: =AW41 -> 33885.79131 | T65: =AZ41 -> 34902.36505 | U65: =BC41 -> 35949.436 | V65: =BF41 -> 37027.91908 | W65: =BI41 -> 38138.75665 | X65: =BL41 -> 39282.91935 | Y65: =BO41 -> 40461.40693 | Z65: =BR41 -> 41675.24914 | AA65: =BU41 -> 42925.50662 | AB65: =BX41 -> 44213.27182 | AC65: =CA41 -> 45539.66997 | AD65: =CD41 -> 46905.86007 | AE65: =CG41 -> 48313.03587 | AF65: =CJ41 -> 49762.42695 | AG65: =CM41 -> 51255.29976 | AH65: =CP41 -> 52792.95875
B66: Cash Flow | C66: 0 | D66: =D42 -> -20058.07917 | E66: =G42 -> -18707.95917 | F66: =J42 -> -17264.94357 | G66: =M42 -> -15761.09062 | H66: =P42 -> -14193.87333 | I66: =S42 -> -12560.66081 | J66: =V42 -> -10858.71407 | K66: =Y42 -> -9085.181554 | L66: =AB42 -> -7237.094601 | M66: =AE42 -> -5311.362639 | N66: =AH42 -> -3304.76822 | O66: =AK42 -> -1213.961852 | P66: =AN42 -> 964.543388 | Q66: =AQ42 -> 3234.377455 | R66: =AT42 -> 5599.319159 | S66: =AW42 -> 8063.302234 | T66: =AZ42 -> 10630.42165 | U66: =BC42 -> 13304.94016 | V66: =BF42 -> 16091.29517 | W66: =BI42 -> 18994.10581 | X66: =BL42 -> 22018.18034 | Y66: =BO42 -> 25168.52386 | Z66: =BR42 -> 28450.34633 | AA66: =BU42 -> 31869.07084 | AB66: =BX42 -> 35430.34235 | AC66: =CA42 -> 39140.0367 | AD66: =CD42 -> 43004.26994 | AE66: =CG42 -> 47029.40817 | AF66: =CJ42 -> 51222.07765 | AG66: =CM42 -> 55589.17542 | AH66: =CP42 -> 112323.9594
B67: Debt Paydown | C67: 0 | D67: 7712.951314 | E67: 8228.683469 | F67: 8778.900433 | G67: 9365.908058 | H67: 9992.16638 | I67: 10660.29992 | J67: 11373.10871 | K67: 12133.57998 | L67: 12944.90071 | M67: 13810.47101 | N67: 14733.91829 | O67: 15719.11256 | P67: 16770.18257 | Q67: 17891.53314 | R67: 19087.86365 | S67: 20364.18767 | T67: 21725.85404 | U67: 23178.56922 | V67: 24728.42128 | W67: 26381.90533 | X67: 28145.95081 | Y67: 30027.95048 | Z67: 32035.79145 | AA67: 34177.88817 | AB67: 36463.21777 | AC67: 38901.3576 | AD67: 41502.52545 | AE67: 44277.6223 | AF67: 47238.27804 | AG67: 50396.90019 | AH67: 0
B68: Depreciation | C68: 0 | D68: 7170.909091 | E68: 7170.909091 | F68: 7170.909091 | G68: 7170.909091 | H68: 7170.909091 | I68: 7170.909091 | J68: 7170.909091 | K68: 7170.909091 | L68: 7170.909091 | M68: 7170.909091 | N68: 7170.909091 | O68: 7170.909091 | P68: 7170.909091 | Q68: 7170.909091 | R68: 7170.909091 | S68: 7170.909091 | T68: 7170.909091 | U68: 7170.909091 | V68: 7170.909091 | W68: 7170.909091 | X68: 7170.909091 | Y68: 7170.909091 | Z68: 7170.909091 | AA68: 7170.909091 | AB68: 7170.909091 | AC68: 7170.909091 | AD68: 3585.454545 | AE68: 0 | AF68: 0 | AG68: 0 | AH68: 0
B69: Total Return on Investment | C69: 0 | D69: 16575.78124 | E69: 19094.13339 | F69: 21759.44095 | G69: 24542.53878 | H69: 27449.01876 | I69: 30484.75932 | J69: 33655.94118 | K69: 36969.06408 | L69: 40430.96447 | M69: 44048.83421 | N69: 47830.24041 | O69: 51783.14649 | P69: 55915.93434 | Q69: 60237.42796 | R69: 64756.91841 | S69: 69484.19031 | T69: 74429.54983 | U69: 79603.85448 | V69: 85018.54462 | W69: 90685.67688 | X69: 96617.95959 | Y69: 102828.7904 | Z69: 109332.296 | AA69: 116143.3747 | AB69: 123277.741 | AC69: 130751.9734 | AD69: 134998.11 | AE69: 139620.0663 | AF69: 148222.7826 | AG69: 157241.3754 | AH69: 165116.9182
C71: Positive Cash Flow Achieved in Year # | D71: =MATCH(TRUE,D61:AH61>0,0) -> 13
B75: ROI QuadrantTM | C75: 0 | D75: 1 | E75: 2 | F75: 3 | G75: 4 | H75: 5 | I75: 6 | J75: 7 | K75: 8 | L75: 9 | M75: 10 | N75: 11 | O75: 12 | P75: 13 | Q75: 14 | R75: 15 | S75: 16 | T75: 17 | U75: 18 | V75: 19 | W75: 20 | X75: 21 | Y75: 22 | Z75: 23 | AA75: 24 | AB75: 25 | AC75: 26 | AD75: 27 | AE75: 28 | AF75: 29 | AG75: 30 | AH75: 31
B76: Appreciation | C76: 0 | D76: =E41 -> 0.3690193417 | E76: =H41 -> 0.380089922 | F76: =K41 -> 0.3914926196 | G76: =N41 -> 0.4032373982 | H76: =Q41 -> 0.4153345201 | I76: =T41 -> 0.4277945558 | J76: =W41 -> 0.4406283924 | K76: =Z41 -> 0.4538472442 | L76: =AC41 -> 0.4674626615 | M76: =AF41 -> 0.4814865414 | N76: =AI41 -> 0.4959311376 | O76: =AL41 -> 0.5108090717 | P76: =AO41 -> 0.5261333439 | Q76: =AR41 -> 0.5419173442 | R76: =AU41 -> 0.5581748645 | S76: =AX41 -> 0.5749201105 | T76: =BA41 -> 0.5921677138 | U76: =BD41 -> 0.6099327452 | V76: =BG41 -> 0.6282307276 | W76: =BJ41 -> 0.6470776494 | X76: =BM41 -> 0.6664899789 | Y76: =BP41 -> 0.6864846782 | Z76: =BS41 -> 0.7070792186 | AA76: =BV41 -> 0.7282915951 | AB76: =BY41 -> 0.750140343 | AC76: =CB41 -> 0.7726445533 | AD76: =CE41 -> 0.7958238899 | AE76: =CH41 -> 0.8196986066 | AF76: =CK41 -> 0.8442895648 | AG76: =CN41 -> 0.8696182517 | AH76: =CQ41 -> 0.8957067993
B77: Cash Flow | C77: 0 | D77: =E42 -> -0.3403135251 | E77: =H42 -> -0.3174068403 | F77: =K42 -> -0.2929240511 | G77: =N42 -> -0.2674090706 | H77: =Q42 -> -0.2408190249 | I77: =T42 -> -0.2131092775 | J77: =W42 -> -0.1842333571 | K77: =Z42 -> -0.1541428835 | L77: =AC42 -> -0.122787489 | M77: =AF42 -> -0.09011473768 | N77: =AI42 -> -0.05607004106 | O77: =AL42 -> -0.02059657028 | P77: =AO42 -> 0.01636483522 | Q77: =AR42 -> 0.05487576272 | R77: =AU42 -> 0.09500032505 | S77: =AX42 -> 0.1368052636 | T77: =BA42 -> 0.1803600551 | U77: =BD42 -> 0.2257370234 | V77: =BG42 -> 0.2730114552 | W77: =BJ42 -> 0.3222617205 | X77: =BM42 -> 0.3735693983 | Y77: =BP42 -> 0.4270194073 | Z77: =BS42 -> 0.4827001413 | AA77: =BV42 -> 0.5407036111 | AB77: =BY42 -> 0.6011255914 | AC77: =CB42 -> 0.6640657736 | AD77: =CE42 -> 0.7296279256 | AE77: =CH42 -> 0.7979200571 | AF77: =CK42 -> 0.869054592 | AG77: =CN42 -> 0.943148548 | AH77: =CQ42 -> 1.905733957
B78: Debt Paydown | C78: 0 | D78: =E43 -> 0.1308610674 | E78: =H43 -> 0.1396111888 | F78: =K43 -> 0.1489463935 | G78: =N43 -> 0.1589058035 | H78: =Q43 -> 0.1695311568 | I78: =T43 -> 0.1808669821 | J78: =W43 -> 0.1929607857 | K78: =Z43 -> 0.2058632503 | L78: =AC43 -> 0.2196284478 | M78: =AF43 -> 0.2343140653 | N78: =AI43 -> 0.2499816473 | O78: =AL43 -> 0.2666968538 | P78: =AO43 -> 0.2845297348 | Q78: =AR43 -> 0.3035550245 | R78: =AU43 -> 0.3238524542 | S78: =AX43 -> 0.3455070864 | T78: =BA43 -> 0.3686096715 | U78: =BD43 -> 0.3932570279 | V78: =BG43 -> 0.4195524479 | W78: =BJ43 -> 0.4476061305 | X78: =BM43 -> 0.4775356432 | Y78: =BP43 -> 0.5094664147 | Z78: =BS43 -> 0.5435322607 | AA78: =BV43 -> 0.5798759445 | AB78: =BY43 -> 0.6186497755 | AC78: =CB43 -> 0.6600162471 | AD78: =CE43 -> 0.7041487182 | AE78: =CH43 -> 0.7512321395 | AF78: =CK43 -> 0.8014638282 | AG78: =CN43 -> 0.8550542958 | AH78: =CQ43 -> 0
B79: Depreciation | C79: 0 | D79: =E44 -> 0.1216645587 | E79: =H44 -> 0.1216645587 | F79: =K44 -> 0.1216645587 | G79: =N44 -> 0.1216645587 | H79: =Q44 -> 0.1216645587 | I79: =T44 -> 0.1216645587 | J79: =W44 -> 0.1216645587 | K79: =Z44 -> 0.1216645587 | L79: =AC44 -> 0.1216645587 | M79: =AF44 -> 0.1216645587 | N79: =AI44 -> 0.1216645587 | O79: =AL44 -> 0.1216645587 | P79: =AO44 -> 0.1216645587 | Q79: =AR44 -> 0.1216645587 | R79: =AU44 -> 0.1216645587 | S79: =AX44 -> 0.1216645587 | T79: =BA44 -> 0.1216645587 | U79: =BD44 -> 0.1216645587 | V79: =BG44 -> 0.1216645587 | W79: =BJ44 -> 0.1216645587 | X79: =BM44 -> 0.1216645587 | Y79: =BP44 -> 0.1216645587 | Z79: =BS44 -> 0.1216645587 | AA79: =BV44 -> 0.1216645587 | AB79: =BY44 -> 0.1216645587 | AC79: =CB44 -> 0.1216645587 | AD79: =CE44 -> 0.06083227936 | AE79: =CH44 -> 0 | AF79: =CK44 -> 0 | AG79: =CN44 -> 0 | AH79: =CQ44 -> 0
B80: Total Return on Investment | C80: 0 | D80: =E45 -> 0.2812314427 | E80: =H45 -> 0.3239588292 | F80: =K45 -> 0.3691795208 | G80: =N45 -> 0.4163986898 | H80: =Q45 -> 0.4657112107 | I80: =T45 -> 0.5172168191 | J80: =W45 -> 0.5710203797 | K80: =Z45 -> 0.6272321697 | L80: =AC45 -> 0.685968179 | M80: =AF45 -> 0.7473504277 | N80: =AI45 -> 0.8115073026 | O80: =AL45 -> 0.878573914 | P80: =AO45 -> 0.9486924726 | Q80: =AR45 -> 1.02201269 | R80: =AU45 -> 1.098692202 | S80: =AX45 -> 1.178897019 | T80: =BA45 -> 1.262801999 | U80: =BD45 -> 1.350591355 | V80: =BG45 -> 1.442459189 | W80: =BJ45 -> 1.538610059 | X80: =BM45 -> 1.639259579 | Y80: =BP45 -> 1.744635059 | Z80: =BS45 -> 1.854976179 | AA80: =BV45 -> 1.970535709 | AB80: =BY45 -> 2.091580269 | AC80: =CB45 -> 2.218391133 | AD80: =CE45 -> 2.290432813 | AE80: =CH45 -> 2.368850803 | AF80: =CK45 -> 2.514807985 | AG80: =CN45 -> 2.667821095 | AH80: =CQ45 -> 2.801440756
C82: 100%+ ROIQ Achieved in Year # | D82: =MATCH(TRUE,D80:AH80>1,0) -> 14

Sheet Long-Term with CF to Principal
A1: Cash Flow Analysis for | D1: =Inputs!B16 -> Sample Property | G1: Cash Investment Breakdown
G2: Purchase Price | M2: =Inputs!B24 -> 725000
B3: Number of Units | D3: =Inputs!B17 -> 2 | G3: Mortgage | M3: =Inputs!B29 -> 688750
G4: Down Payment | M4: =Inputs!B28 -> 36250
A5: Annual Rent Increase | D5: ='Long-Term Analysis'!D5 -> 0.04 | G5: Net Closing Costs paid by Buyer | M5: =Inputs!B25+Inputs!B26+Inputs!B27-IF((Inputs!B25+Inputs!B26+Inputs!B27)>Inputs!B31,Inputs!B31,(Inputs!B25+Inputs!B26+Inputs!B27)) -> 22690
G6: Repair Costs | M6: =Inputs!B32 -> 0
A7: Annual Cash Flow Statement | G7: Total Cash Investment | M7: =Inputs!B33 -> 58940
A9: Annual Income | D9: Year 1 | G9: Year 2 | J9: Year 3 | M9: Year 4 | P9: Year 5 | S9: Year 6 | V9: Year 7 | Y9: Year 8 | AB9: Year 9 | AE9: Year 10 | AH9: Year 11 | AK9: Year 12 | AN9: Year 13 | AQ9: Year 14 | AT9: Year 15 | AW9: Year 16 | AZ9: Year 17 | BC9: Year 18 | BF9: Year 19 | BI9: Year 20 | BL9: Year 21 | BO9: Year 22 | BR9: Year 23 | BU9: Year 24 | BX9: Year 25 | CA9: Year 26 | CD9: Year 27 | CG9: Year 28 | CJ9: Year 29 | CM9: Year 30 | CP9: Year 31
A10: Annual Rental Income | D10: =Inputs!B43*12 -> 44400 | G10: =D10*(1+$D$5) -> 46176 | J10: =G10*(1+$D$5) -> 48023.04 | M10: =J10*(1+$D$5) -> 49943.9616 | P10: =M10*(1+$D$5) -> 51941.72006 | S10: =P10*(1+$D$5) -> 54019.38887 | V10: =S10*(1+$D$5) -> 56180.16442 | Y10: =V10*(1+$D$5) -> 58427.371 | AB10: =Y10*(1+$D$5) -> 60764.46584 | AE10: =AB10*(1+$D$5) -> 63195.04447 | AH10: =AE10*(1+$D$5) -> 65722.84625 | AK10: =AH10*(1+$D$5) -> 68351.7601 | AN10: =AK10*(1+$D$5) -> 71085.8305 | AQ10: =AN10*(1+$D$5) -> 73929.26372 | AT10: =AQ10*(1+$D$5) -> 76886.43427 | AW10: =AT10*(1+$D$5) -> 79961.89164 | AZ10: =AW10*(1+$D$5) -> 83160.36731 | BC10: =AZ10*(1+$D$5) -> 86486.782 | BF10: =BC10*(1+$D$5) -> 89946.25328 | BI10: =BF10*(1+$D$5) -> 93544.10341 | BL10: =BI10*(1+$D$5) -> 97285.86755 | BO10: =BL10*(1+$D$5) -> 101177.3023 | BR10: =BO10*(1+$D$5) -> 105224.3943 | BU10: =BR10*(1+$D$5) -> 109433.3701 | BX10: =BU10*(1+$D$5) -> 113810.7049 | CA10: =BX10*(1+$D$5) -> 118363.1331 | CD10: =CA10*(1+$D$5) -> 123097.6584 | CG10: =CD10*(1+$D$5) -> 128021.5648 | CJ10: =CG10*(1+$D$5) -> 133142.4274 | CM10: =CJ10*(1+$D$5) -> 138468.1245 | CP10: =CM10*(1+$D$5) -> 144006.8494
A11: - Vacancy | B11: =Inputs!B45 -> 0.05 | D11: =-D10*Inputs!B45 -> -2220 | G11: =-G10*Inputs!$B$45 -> -2308.8 | J11: =-J10*Inputs!$B$45 -> -2401.152 | M11: =-M10*Inputs!$B$45 -> -2497.19808 | P11: =-P10*Inputs!$B$45 -> -2597.086003 | S11: =-S10*Inputs!$B$45 -> -2700.969443 | V11: =-V10*Inputs!$B$45 -> -2809.008221 | Y11: =-Y10*Inputs!$B$45 -> -2921.36855 | AB11: =-AB10*Inputs!$B$45 -> -3038.223292 | AE11: =-AE10*Inputs!$B$45 -> -3159.752224 | AH11: =-AH10*Inputs!$B$45 -> -3286.142313 | AK11: =-AK10*Inputs!$B$45 -> -3417.588005 | AN11: =-AN10*Inputs!$B$45 -> -3554.291525 | AQ11: =-AQ10*Inputs!$B$45 -> -3696.463186 | AT11: =-AT10*Inputs!$B$45 -> -3844.321714 | AW11: =-AW10*Inputs!$B$45 -> -3998.094582 | AZ11: =-AZ10*Inputs!$B$45 -> -4158.018366 | BC11: =-BC10*Inputs!$B$45 -> -4324.3391 | BF11: =-BF10*Inputs!$B$45 -> -4497.312664 | BI11: =-BI10*Inputs!$B$45 -> -4677.205171 | BL11: =-BL10*Inputs!$B$45 -> -4864.293378 | BO11: =-BO10*Inputs!$B$45 -> -5058.865113 | BR11: =-BR10*Inputs!$B$45 -> -5261.219717 | BU11: =-BU10*Inputs!$B$45 -> -5471.668506 | BX11: =-BX10*Inputs!$B$45 -> -5690.535246 | CA11: =-CA10*Inputs!$B$45 -> -5918.156656 | CD11: =-CD10*Inputs!$B$45 -> -6154.882922 | CG11: =-CG10*Inputs!$B$45 -> -6401.078239 | CJ11: =-CJ10*Inputs!$B$45 -> -6657.121369 | CM11: =-CM10*Inputs!$B$45 -> -6923.406223 | CP11: =-CP10*Inputs!$B$45 -> -7200.342472
A12: Expected Annual Rental Income | D12: =SUM(D10:D11) -> 42180 | G12: =SUM(G10:G11) -> 43867.2 | J12: =SUM(J10:J11) -> 45621.888 | M12: =SUM(M10:M11) -> 47446.76352 | P12: =SUM(P10:P11) -> 49344.63406 | S12: =SUM(S10:S11) -> 51318.41942 | V12: =SUM(V10:V11) -> 53371.1562 | Y12: =SUM(Y10:Y11) -> 55506.00245 | AB12: =SUM(AB10:AB11) -> 57726.24255 | AE12: =SUM(AE10:AE11) -> 60035.29225 | AH12: =SUM(AH10:AH11) -> 62436.70394 | AK12: =SUM(AK10:AK11) -> 64934.1721 | AN12: =SUM(AN10:AN11) -> 67531.53898 | AQ12: =SUM(AQ10:AQ11) -> 70232.80054 | AT12: =SUM(AT10:AT11) -> 73042.11256 | AW12: =SUM(AW10:AW11) -> 75963.79706 | AZ12: =SUM(AZ10:AZ11) -> 79002.34894 | BC12: =SUM(BC10:BC11) -> 82162.4429 | BF12: =SUM(BF10:BF11) -> 85448.94062 | BI12: =SUM(BI10:BI11) -> 88866.89824 | BL12: =SUM(BL10:BL11) -> 92421.57417 | BO12: =SUM(BO10:BO11) -> 96118.43714 | BR12: =SUM(BR10:BR11) -> 99963.17463 | BU12: =SUM(BU10:BU11) -> 103961.7016 | BX12: =SUM(BX10:BX11) -> 108120.1697 | CA12: =SUM(CA10:CA11) -> 112444.9765 | CD12: =SUM(CD10:CD11) -> 116942.7755 | CG12: =SUM(CG10:CG11) -> 121620.4865 | CJ12: =SUM(CJ10:CJ11) -> 126485.306 | CM12: =SUM(CM10:CM11) -> 131544.7182 | CP12: =SUM(CP10:CP11) -> 136806.507
A14: Annual Expenses
A15: Property Management | D15: =Inputs!B59 -> 0 | G15: =(G10*Inputs!$B$57) -> 0 | J15: =J10*Inputs!$B$57 -> 0 | M15: =M10*Inputs!$B$57 -> 0 | P15: =P10*Inputs!$B$57 -> 0 | S15: =S10*Inputs!$B$57 -> 0 | V15: =V10*Inputs!$B$57 -> 0 | Y15: =Y10*Inputs!$B$57 -> 0 | AB15: =AB10*Inputs!$B$57 -> 0 | AE15: =AE10*Inputs!$B$57 -> 0 | AH15: =AH10*Inputs!$B$57 -> 0 | AK15: =AK10*Inputs!$B$57 -> 0 | AN15: =AN10*Inputs!$B$57 -> 0 | AQ15: =AQ10*Inputs!$B$57 -> 0 | AT15: =AT10*Inputs!$B$57 -> 0 | AW15: =AW10*Inputs!$B$57 -> 0 | AZ15: =AZ10*Inputs!$B$57 -> 0 | BC15: =BC10*Inputs!$B$57 -> 0 | BF15: =BF10*Inputs!$B$57 -> 0 | BI15: =BI10*Inputs!$B$57 -> 0 | BL15: =BL10*Inputs!$B$57 -> 0 | BO15: =BO10*Inputs!$B$57 -> 0 | BR15: =BR10*Inputs!$B$57 -> 0 | BU15: =BU10*Inputs!$B$57 -> 0 | BX15: =BX10*Inputs!$B$57 -> 0 | CA15: =CA10*Inputs!$B$57 -> 0 | CD15: =CD10*Inputs!$B$57 -> 0 | CG15: =CG10*Inputs!$B$57 -> 0 | CJ15: =CJ10*Inputs!$B$57 -> 0 | CM15: =CM10*Inputs!$B$57 -> 0 | CP15: =CP10*Inputs!$B$57 -> 0
A16: Reserves for Repairs and Maintenance | D16: =Inputs!B62 -> 3552 | G16: =G10*Inputs!B60 -> 3694.08 | J16: =G16*(1.03) -> 3804.9024 | M16: =J16*(1.03) -> 3919.049472 | P16: =M16*(1.03) -> 4036.620956 | S16: =P16*(1.03) -> 4157.719585 | V16: =S16*(1.03) -> 4282.451172 | Y16: =V16*(1.03) -> 4410.924708 | AB16: =Y16*(1.03) -> 4543.252449 | AE16: =AB16*(1.03) -> 4679.550022 | AH16: =AE16*(1.03) -> 4819.936523 | AK16: =AH16*(1.03) -> 4964.534619 | AN16: =AK16*(1.03) -> 5113.470657 | AQ16: =AN16*(1.03) -> 5266.874777 | AT16: =AQ16*(1.03) -> 5424.88102 | AW16: =AT16*(1.03) -> 5587.627451 | AZ16: =AW16*(1.03) -> 5755.256274 | BC16: =AZ16*(1.03) -> 5927.913963 | BF16: =BC16*(1.03) -> 6105.751381 | BI16: =BF16*(1.03) -> 6288.923923 | BL16: =BI16*(1.03) -> 6477.591641 | BO16: =BL16*(1.03) -> 6671.91939 | BR16: =BO16*(1.03) -> 6872.076971 | BU16: =BR16*(1.03) -> 7078.239281 | BX16: =BU16*(1.03) -> 7290.586459 | CA16: =BX16*(1.03) -> 7509.304053 | CD16: =CA16*(1.03) -> 7734.583174 | CG16: =CD16*(1.03) -> 7966.62067 | CJ16: =CG16*(1.03) -> 8205.61929 | CM16: =CJ16*(1.03) -> 8451.787868 | CP16: =CM16*(1.03) -> 8705.341504
A17: HOA Dues | D17: =Inputs!B67 -> 0 | G17: =D17*(1.03) -> 0 | J17: =G17*(1.03) -> 0 | M17: =J17*(1.03) -> 0 | P17: =M17*(1.03) -> 0 | S17: =P17*(1.03) -> 0 | V17: =S17*(1.03) -> 0 | Y17: =V17*(1.03) -> 0 | AB17: =Y17*(1.03) -> 0 | AE17: =AB17*(1.03) -> 0 | AH17: =AE17*(1.03) -> 0 | AK17: =AH17*(1.03) -> 0 | AN17: =AK17*(1.03) -> 0 | AQ17: =AN17*(1.03) -> 0 | AT17: =AQ17*(1.03) -> 0 | AW17: =AT17*(1.03) -> 0 | AZ17: =AW17*(1.03) -> 0 | BC17: =AZ17*(1.03) -> 0 | BF17: =BC17*(1.03) -> 0 | BI17: =BF17*(1.03) -> 0 | BL17: =BI17*(1.03) -> 0 | BO17: =BL17*(1.03) -> 0 | BR17: =BO17*(1.03) -> 0 | BU17: =BR17*(1.03) -> 0 | BX17: =BU17*(1.03) -> 0 | CA17: =BX17*(1.03) -> 0 | CD17: =CA17*(1.03) -> 0 | CG17: =CD17*(1.03) -> 0 | CJ17: =CG17*(1.03) -> 0 | CM17: =CJ17*(1.03) -> 0 | CP17: =CM17*(1.03) -> 0
A18: Real Estate Taxes | D18: =Inputs!B70 -> 3500 | G18: =D18*(1.03) -> 3605 | J18: =G18*(1.03) -> 3713.15 | M18: =J18*(1.03) -> 3824.5445 | P18: =M18*(1.03) -> 3939.280835 | S18: =P18*(1.03) -> 4057.45926 | V18: =S18*(1.03) -> 4179.183038 | Y18: =V18*(1.03) -> 4304.558529 | AB18: =Y18*(1.03) -> 4433.695285 | AE18: =AB18*(1.03) -> 4566.706143 | AH18: =AE18*(1.03) -> 4703.707328 | AK18: =AH18*(1.03) -> 4844.818548 | AN18: =AK18*(1.03) -> 4990.163104 | AQ18: =AN18*(1.03) -> 5139.867997 | AT18: =AQ18*(1.03) -> 5294.064037 | AW18: =AT18*(1.03) -> 5452.885958 | AZ18: =AW18*(1.03) -> 5616.472537 | BC18: =AZ18*(1.03) -> 5784.966713 | BF18: =BC18*(1.03) -> 5958.515714 | BI18: =BF18*(1.03) -> 6137.271186 | BL18: =BI18*(1.03) -> 6321.389321 | BO18: =BL18*(1.03) -> 6511.031001 | BR18: =BO18*(1.03) -> 6706.361931 | BU18: =BR18*(1.03) -> 6907.552789 | BX18: =BU18*(1.03) -> 7114.779373 | CA18: =BX18*(1.03) -> 7328.222754 | CD18: =CA18*(1.03) -> 7548.069436 | CG18: =CD18*(1.03) -> 7774.511519 | CJ18: =CG18*(1.03) -> 8007.746865 | CM18: =CJ18*(1.03) -> 8247.979271 | CP18: =CM18*(1.03) -> 8495.418649
A19: Property Insurance | D19: =Inputs!B71 -> 3000 | G19: =D19*1.03 -> 3090 | J19: =G19*1.03 -> 3182.7 | M19: =J19*1.03 -> 3278.181 | P19: =M19*1.03 -> 3376.52643 | S19: =P19*1.03 -> 3477.822223 | V19: =S19*1.03 -> 3582.15689 | Y19: =V19*1.03 -> 3689.621596 | AB19: =Y19*1.03 -> 3800.310244 | AE19: =AB19*1.03 -> 3914.319551 | AH19: =AE19*1.03 -> 4031.749138 | AK19: =AH19*1.03 -> 4152.701612 | AN19: =AK19*1.03 -> 4277.282661 | AQ19: =AN19*1.03 -> 4405.60114 | AT19: =AQ19*1.03 -> 4537.769175 | AW19: =AT19*1.03 -> 4673.90225 | AZ19: =AW19*1.03 -> 4814.119317 | BC19: =AZ19*1.03 -> 4958.542897 | BF19: =BC19*1.03 -> 5107.299184 | BI19: =BF19*1.03 -> 5260.518159 | BL19: =BI19*1.03 -> 5418.333704 | BO19: =BL19*1.03 -> 5580.883715 | BR19: =BO19*1.03 -> 5748.310227 | BU19: =BR19*1.03 -> 5920.759533 | BX19: =BU19*1.03 -> 6098.382319 | CA19: =BX19*1.03 -> 6281.333789 | CD19: =CA19*1.03 -> 6469.773803 | CG19: =CD19*1.03 -> 6663.867017 | CJ19: =CG19*1.03 -> 6863.783027 | CM19: =CJ19*1.03 -> 7069.696518 | CP19: =CM19*1.03 -> 7281.787414
A20: Utilities (If paid by owner)
A21: - Water and Sewer | D21: =Inputs!B73 -> 0 | G21: =D21*1.03 -> 0 | J21: =G21*1.03 -> 0 | M21: =J21*1.03 -> 0 | P21: =M21*1.03 -> 0 | S21: =P21*1.03 -> 0 | V21: =S21*1.03 -> 0 | Y21: =V21*1.03 -> 0 | AB21: =Y21*1.03 -> 0 | AE21: =AB21*1.03 -> 0 | AH21: =AE21*1.03 -> 0 | AK21: =AH21*1.03 -> 0 | AN21: =AK21*1.03 -> 0 | AQ21: =AN21*1.03 -> 0 | AT21: =AQ21*1.03 -> 0 | AW21: =AT21*1.03 -> 0 | AZ21: =AW21*1.03 -> 0 | BC21: =AZ21*1.03 -> 0 | BF21: =BC21*1.03 -> 0 | BI21: =BF21*1.03 -> 0 | BL21: =BI21*1.03 -> 0 | BO21: =BL21*1.03 -> 0 | BR21: =BO21*1.03 -> 0 | BU21: =BR21*1.03 -> 0 | BX21: =BU21*1.03 -> 0 | CA21: =BX21*1.03 -> 0 | CD21: =CA21*1.03 -> 0 | CG21: =CD21*1.03 -> 0 | CJ21: =CG21*1.03 -> 0 | CM21: =CJ21*1.03 -> 0 | CP21: =CM21*1.03 -> 0
A22: - Trash | D22: =Inputs!B74 -> 0 | G22: =D22*1.03 -> 0 | J22: =G22*1.03 -> 0 | M22: =J22*1.03 -> 0 | P22: =M22*1.03 -> 0 | S22: =P22*1.03 -> 0 | V22: =S22*1.03 -> 0 | Y22: =V22*1.03 -> 0 | AB22: =Y22*1.03 -> 0 | AE22: =AB22*1.03 -> 0 | AH22: =AE22*1.03 -> 0 | AK22: =AH22*1.03 -> 0 | AN22: =AK22*1.03 -> 0 | AQ22: =AN22*1.03 -> 0 | AT22: =AQ22*1.03 -> 0 | AW22: =AT22*1.03 -> 0 | AZ22: =AW22*1.03 -> 0 | BC22: =AZ22*1.03 -> 0 | BF22: =BC22*1.03 -> 0 | BI22: =BF22*1.03 -> 0 | BL22: =BI22*1.03 -> 0 | BO22: =BL22*1.03 -> 0 | BR22: =BO22*1.03 -> 0 | BU22: =BR22*1.03 -> 0 | BX22: =BU22*1.03 -> 0 | CA22: =BX22*1.03 -> 0 | CD22: =CA22*1.03 -> 0 | CG22: =CD22*1.03 -> 0 | CJ22: =CG22*1.03 -> 0 | CM22: =CJ22*1.03 -> 0 | CP22: =CM22*1.03 -> 0
A23: - Electric | D23: =Inputs!B75 -> 0 | G23: =D23*1.03 -> 0 | J23: =G23*1.03 -> 0 | M23: =J23*1.03 -> 0 | P23: =M23*1.03 -> 0 | S23: =P23*1.03 -> 0 | V23: =S23*1.03 -> 0 | Y23: =V23*1.03 -> 0 | AB23: =Y23*1.03 -> 0 | AE23: =AB23*1.03 -> 0 | AH23: =AE23*1.03 -> 0 | AK23: =AH23*1.03 -> 0 | AN23: =AK23*1.03 -> 0 | AQ23: =AN23*1.03 -> 0 | AT23: =AQ23*1.03 -> 0 | AW23: =AT23*1.03 -> 0 | AZ23: =AW23*1.03 -> 0 | BC23: =AZ23*1.03 -> 0 | BF23: =BC23*1.03 -> 0 | BI23: =BF23*1.03 -> 0 | BL23: =BI23*1.03 -> 0 | BO23: =BL23*1.03 -> 0 | BR23: =BO23*1.03 -> 0 | BU23: =BR23*1.03 -> 0 | BX23: =BU23*1.03 -> 0 | CA23: =BX23*1.03 -> 0 | CD23: =CA23*1.03 -> 0 | CG23: =CD23*1.03 -> 0 | CJ23: =CG23*1.03 -> 0 | CM23: =CJ23*1.03 -> 0 | CP23: =CM23*1.03 -> 0
A24: Landscaping | D24: =Inputs!B76 -> 0 | G24: =D24*1.03 -> 0 | J24: =G24*1.03 -> 0 | M24: =J24*1.03 -> 0 | P24: =M24*1.03 -> 0 | S24: =P24*1.03 -> 0 | V24: =S24*1.03 -> 0 | Y24: =V24*1.03 -> 0 | AB24: =Y24*1.03 -> 0 | AE24: =AB24*1.03 -> 0 | AH24: =AE24*1.03 -> 0 | AK24: =AH24*1.03 -> 0 | AN24: =AK24*1.03 -> 0 | AQ24: =AN24*1.03 -> 0 | AT24: =AQ24*1.03 -> 0 | AW24: =AT24*1.03 -> 0 | AZ24: =AW24*1.03 -> 0 | BC24: =AZ24*1.03 -> 0 | BF24: =BC24*1.03 -> 0 | BI24: =BF24*1.03 -> 0 | BL24: =BI24*1.03 -> 0 | BO24: =BL24*1.03 -> 0 | BR24: =BO24*1.03 -> 0 | BU24: =BR24*1.03 -> 0 | BX24: =BU24*1.03 -> 0 | CA24: =BX24*1.03 -> 0 | CD24: =CA24*1.03 -> 0 | CG24: =CD24*1.03 -> 0 | CJ24: =CG24*1.03 -> 0 | CM24: =CJ24*1.03 -> 0 | CP24: =CM24*1.03 -> 0
A25: =Inputs!A77 -> Other | D25: =Inputs!B77 -> 0 | G25: 0 | J25: 0 | M25: 0 | P25: 0 | S25: 0 | V25: 0 | Y25: 0 | AB25: 0 | AE25: 0 | AH25: 0 | AK25: 0 | AN25: 0 | AQ25: 0 | AT25: 0 | AW25: 0 | AZ25: 0 | BC25: 0 | BF25: 0 | BI25: 0 | BL25: 0 | BO25: 0 | BR25: 0 | BU25: 0 | BX25: 0 | CA25: 0 | CD25: 0 | CG25: 0 | CJ25: 0 | CM25: 0 | CP25: 0
A26: =Inputs!A78 -> Other | D26: =Inputs!B78 -> 0 | G26: 0 | J26: 0 | M26: 0 | P26: 0 | S26: 0 | V26: 0 | Y26: 0 | AB26: 0 | AE26: 0 | AH26: 0 | AK26: 0 | AN26: 0 | AQ26: 0 | AT26: 0 | AW26: 0 | AZ26: 0 | BC26: 0 | BF26: 0 | BI26: 0 | BL26: 0 | BO26: 0 | BR26: 0 | BU26: 0 | BX26: 0 | CA26: 0 | CD26: 0 | CG26: 0 | CJ26: 0 | CM26: 0 | CP26: 0
A27: Total Annual Expenses | D27: =SUM(D15:D26) -> 10052 | G27: =SUM(G15:G26) -> 10389.08 | J27: =SUM(J15:J26) -> 10700.7524 | M27: =SUM(M15:M26) -> 11021.77497 | P27: =SUM(P15:P26) -> 11352.42822 | S27: =SUM(S15:S26) -> 11693.00107 | V27: =SUM(V15:V26) -> 12043.7911 | Y27: =SUM(Y15:Y26) -> 12405.10483 | AB27: =SUM(AB15:AB26) -> 12777.25798 | AE27: =SUM(AE15:AE26) -> 13160.57572 | AH27: =SUM(AH15:AH26) -> 13555.39299 | AK27: =SUM(AK15:AK26) -> 13962.05478 | AN27: =SUM(AN15:AN26) -> 14380.91642 | AQ27: =SUM(AQ15:AQ26) -> 14812.34391 | AT27: =SUM(AT15:AT26) -> 15256.71423 | AW27: =SUM(AW15:AW26) -> 15714.41566 | AZ27: =SUM(AZ15:AZ26) -> 16185.84813 | BC27: =SUM(BC15:BC26) -> 16671.42357 | BF27: =SUM(BF15:BF26) -> 17171.56628 | BI27: =SUM(BI15:BI26) -> 17686.71327 | BL27: =SUM(BL15:BL26) -> 18217.31467 | BO27: =SUM(BO15:BO26) -> 18763.83411 | BR27: =SUM(BR15:BR26) -> 19326.74913 | BU27: =SUM(BU15:BU26) -> 19906.5516 | BX27: =SUM(BX15:BX26) -> 20503.74815 | CA27: =SUM(CA15:CA26) -> 21118.8606 | CD27: =SUM(CD15:CD26) -> 21752.42641 | CG27: =SUM(CG15:CG26) -> 22404.99921 | CJ27: =SUM(CJ15:CJ26) -> 23077.14918 | CM27: =SUM(CM15:CM26) -> 23769.46366 | CP27: =SUM(CP15:CP26) -> 24482.54757
A29: Net Operating Income | D29: =D12-D27 -> 32128 | G29: =G12-G27 -> 33478.12 | J29: =J12-J27 -> 34921.1356 | M29: =M12-M27 -> 36424.98855 | P29: =P12-P27 -> 37992.20584 | S29: =S12-S27 -> 39625.41836 | V29: =V12-V27 -> 41327.3651 | Y29: =Y12-Y27 -> 43100.89762 | AB29: =AB12-AB27 -> 44948.98457 | AE29: =AE12-AE27 -> 46874.71653 | AH29: =AH12-AH27 -> 48881.31095 | AK29: =AK12-AK27 -> 50972.11732 | AN29: =AN12-AN27 -> 53150.62256 | AQ29: =AQ12-AQ27 -> 55420.45662 | AT29: =AT12-AT27 -> 57785.39833 | AW29: =AW12-AW27 -> 60249.3814 | AZ29: =AZ12-AZ27 -> 62816.50082 | BC29: =BC12-BC27 -> 65491.01933 | BF29: =BF12-BF27 -> 68277.37434 | BI29: =BI12-BI27 -> 71180.18498 | BL29: =BL12-BL27 -> 74204.25951 | BO29: =BO12-BO27 -> 77354.60303 | BR29: =BR12-BR27 -> 80636.4255 | BU29: =BU12-BU27 -> 84055.15001 | BX29: =BX12-BX27 -> 87616.42152 | CA29: =CA12-CA27 -> 91326.11587 | CD29: =CD12-CD27 -> 95190.34911 | CG29: =CG12-CG27 -> 99215.48734 | CJ29: =CJ12-CJ27 -> 103408.1568 | CM29: =CM12-CM27 -> 107775.2546 | CP29: =CP12-CP27 -> 112323.9594
A31: Less: Annual Mortgage Payments | D31: =PMT(Inputs!B35/12,Inputs!B36*12,Inputs!B29,0)*12 -> -52186.07917 | G31: =IF(D37>0,PMT(Inputs!$B$35/12,Inputs!$B$36*12,Inputs!$B$29,0)*12,0) -> -52186.07917 | J31: =IF(G37>0,PMT(Inputs!$B$35/12,Inputs!$B$36*12,Inputs!$B$29,0)*12,0) -> -52186.07917 | M31: =IF(J37>0,PMT(Inputs!$B$35/12,Inputs!$B$36*12,Inputs!$B$29,0)*12,0) -> -52186.07917 | P31: =IF(M37>0,PMT(Inputs!$B$35/12,Inputs!$B$36*12,Inputs!$B$29,0)*12,0) -> -52186.07917 | S31: =IF(P37>0,PMT(Inputs!$B$35/12,Inputs!$B$36*12,Inputs!$B$29,0)*12,0) -> -52186.07917 | V31: =IF(S37>0,PMT(Inputs!$B$35/12,Inputs!$B$36*12,Inputs!$B$29,0)*12,0) -> -52186.07917 | Y31: =IF(V37>0,PMT(Inputs!$B$35/12,Inputs!$B$36*12,Inputs!$B$29,0)*12,0) -> -52186.07917 | AB31: =IF(Y37>0,PMT(Inputs!$B$35/12,Inputs!$B$36*12,Inputs!$B$29,0)*12,0) -> -52186.07917 | AE31: =IF(AB37>0,PMT(Inputs!$B$35/12,Inputs!$B$36*12,Inputs!$B$29,0)*12,0) -> -52186.07917 | AH31: =IF(AE37>0,PMT(Inputs!$B$35/12,Inputs!$B$36*12,Inputs!$B$29,0)*12,0) -> -52186.07917 | AK31: =IF(AH37>0,PMT(Inputs!$B$35/12,Inputs!$B$36*12,Inputs!$B$29,0)*12,0) -> -52186.07917 | AN31: =IF(AK37>0,PMT(Inputs!$B$35/12,Inputs!$B$36*12,Inputs!$B$29,0)*12,0) -> -52186.07917 | AQ31: =IF(AN37>0,PMT(Inputs!$B$35/12,Inputs!$B$36*12,Inputs!$B$29,0)*12,0) -> -52186.07917 | AT31: =IF(AQ37>0,PMT(Inputs!$B$35/12,Inputs!$B$36*12,Inputs!$B$29,0)*12,0) -> -52186.07917 | AW31: =IF(AT37>0,PMT(Inputs!$B$35/12,Inputs!$B$36*12,Inputs!$B$29,0)*12,0) -> -52186.07917 | AZ31: =IF(AW37>0,PMT(Inputs!$B$35/12,Inputs!$B$36*12,Inputs!$B$29,0)*12,0) -> -52186.07917 | BC31: =IF(AZ37>0,PMT(Inputs!$B$35/12,Inputs!$B$36*12,Inputs!$B$29,0)*12,0) -> -52186.07917 | BF31: =IF(BC37>0,PMT(Inputs!$B$35/12,Inputs!$B$36*12,Inputs!$B$29,0)*12,0) -> -52186.07917 | BI31: =IF(BF37>0,PMT(Inputs!$B$35/12,Inputs!$B$36*12,Inputs!$B$29,0)*12,0) -> -52186.07917 | BL31: =IF(BI37>0,PMT(Inputs!$B$35/12,Inputs!$B$36*12,Inputs!$B$29,0)*12,0) -> -52186.07917 | BO31: =IF(BL37>0,PMT(Inputs!$B$35/12,Inputs!$B$36*12,Inputs!$B$29,0)*12,0) -> -52186.07917 | BR31: =IF(BO37>0,PMT(Inputs!$B$35/12,Inputs!$B$36*12,Inputs!$B$29,0)*12,0) -> -52186.07917 | BU31: =IF(BR37>0,PMT(Inputs!$B$35/12,Inputs!$B$36*12,Inputs!$B$29,0)*12,0) -> -52186.07917 | BX31: =IF(BU37>0,PMT(Inputs!$B$35/12,Inputs!$B$36*12,Inputs!$B$29,0)*12,0) -> -52186.07917 | CA31: =IF(BX37>0,PMT(Inputs!$B$35/12,Inputs!$B$36*12,Inputs!$B$29,0)*12,0) -> -52186.07917 | CD31: =IF(CA37>0,PMT(Inputs!$B$35/12,Inputs!$B$36*12,Inputs!$B$29,0)*12,0) -> 0 | CG31: =IF(CD37>0,PMT(Inputs!$B$35/12,Inputs!$B$36*12,Inputs!$B$29,0)*12,0) -> 0 | CJ31: =IF(CG37>0,PMT(Inputs!$B$35/12,Inputs!$B$36*12,Inputs!$B$29,0)*12,0) -> 0 | CM31: =IF(CJ37>0,PMT(Inputs!$B$35/12,Inputs!$B$36*12,Inputs!$B$29,0)*12,0) -> 0 | CP31: =IF(CM37>0,PMT(Inputs!$B$35/12,Inputs!$B$36*12,Inputs!$B$29,0)*12,0) -> 0
A32: Less: Annual Mortgage Insurance | D32: =-Inputs!B37*12 -> 0 | G32: =IF((D37/$M$2)>0.8,D32,0) -> 0 | J32: =IF((G37/$M$2)>0.8,G32,0) -> 0 | M32: =IF((J37/$M$2)>0.8,J32,0) -> 0 | P32: =IF((M37/$M$2)>0.8,M32,0) -> 0 | S32: =IF((P37/$M$2)>0.8,P32,0) -> 0 | V32: =IF((S37/$M$2)>0.8,S32,0) -> 0 | Y32: =IF((V37/$M$2)>0.8,V32,0) -> 0 | AB32: =IF((Y37/$M$2)>0.8,Y32,0) -> 0 | AE32: =IF((AB37/$M$2)>0.8,AB32,0) -> 0 | AH32: =IF((AE37/$M$2)>0.8,AE32,0) -> 0 | AK32: =IF((AH37/$M$2)>0.8,AH32,0) -> 0 | AN32: =IF((AK37/$M$2)>0.8,AK32,0) -> 0 | AQ32: =IF((AN37/$M$2)>0.8,AN32,0) -> 0 | AT32: =IF((AQ37/$M$2)>0.8,AQ32,0) -> 0 | AW32: =IF((AT37/$M$2)>0.8,AT32,0) -> 0 | AZ32: =IF((AW37/$M$2)>0.8,AW32,0) -> 0 | BC32: =IF((AZ37/$M$2)>0.8,AZ32,0) -> 0 | BF32: =IF((BC37/$M$2)>0.8,BC32,0) -> 0 | BI32: =IF((BF37/$M$2)>0.8,BF32,0) -> 0 | BL32: =IF((BI37/$M$2)>0.8,BI32,0) -> 0 | BO32: =IF((BL37/$M$2)>0.8,BL32,0) -> 0 | BR32: =IF((BO37/$M$2)>0.8,BO32,0) -> 0 | BU32: =IF((BR37/$M$2)>0.8,BR32,0) -> 0 | BX32: =IF((BU37/$M$2)>0.8,BU32,0) -> 0 | CA32: =IF((BX37/$M$2)>0.8,BX32,0) -> 0 | CD32: =IF((CA37/$M$2)>0.8,CA32,0) -> 0 | CG32: =IF((CD37/$M$2)>0.8,CD32,0) -> 0 | CJ32: =IF((CG37/$M$2)>0.8,CG32,0) -> 0 | CM32: =IF((CJ37/$M$2)>0.8,CJ32,0) -> 0 | CP32: =IF((CM37/$M$2)>0.8,CM32,0) -> 0
A34: Annual Cash Flow Before Taxes** | D34: =D29+D31+D32 -> -20058.07917 | G34: =G29+G31+G32 -> -18707.95917 | J34: =J29+J31+J32 -> -17264.94357 | M34: =M29+M31+M32 -> -15761.09062 | P34: =P29+P31+P32 -> -14193.87333 | S34: =S29+S31+S32 -> -12560.66081 | V34: =V29+V31+V32 -> -10858.71407 | Y34: =Y29+Y31+Y32 -> -9085.181554 | AB34: =AB29+AB31+AB32 -> -7237.094601 | AE34: =AE29+AE31+AE32 -> -5311.362639 | AH34: =AH29+AH31+AH32 -> -3304.76822 | AK34: =AK29+AK31+AK32 -> -1213.961852 | AN34: =AN29+AN31+AN32 -> 964.543388 | AQ34: =AQ29+AQ31+AQ32 -> 3234.377455 | AT34: =AT29+AT31+AT32 -> 5599.319159 | AW34: =AW29+AW31+AW32 -> 8063.302234 | AZ34: =AZ29+AZ31+AZ32 -> 10630.42165 | BC34: =BC29+BC31+BC32 -> 13304.94016 | BF34: =BF29+BF31+BF32 -> 16091.29517 | BI34: =BI29+BI31+BI32 -> 18994.10581 | BL34: =BL29+BL31+BL32 -> 22018.18034 | BO34: =BO29+BO31+BO32 -> 25168.52386 | BR34: =BR29+BR31+BR32 -> 28450.34633 | BU34: =BU29+BU31+BU32 -> 31869.07084 | BX34: =BX29+BX31+BX32 -> 35430.34235 | CA34: =CA29+CA31+CA32 -> 39140.0367 | CD34: =CD29+CD31+CD32 -> 95190.34911 | CG34: =CG29+CG31+CG32 -> 99215.48734 | CJ34: =CJ29+CJ31+CJ32 -> 103408.1568 | CM34: =CM29+CM31+CM32 -> 107775.2546 | CP34: =CP29+CP31+CP32 -> 112323.9594
A35: **All Cash Flows are Reinvested to Reduce the principal balance
A36: Property Value at End of Year | D36: =Inputs!B24*(1+Inputs!B49) -> 746750 | G36: =D36*(1+Inputs!$B$49) -> 769152.5 | J36: =G36*(1+Inputs!$B$49) -> 792227.075 | M36: =J36*(1+Inputs!$B$49) -> 815993.8873 | P36: =M36*(1+Inputs!$B$49) -> 840473.7039 | S36: =P36*(1+Inputs!$B$49) -> 865687.915 | V36: =S36*(1+Inputs!$B$49) -> 891658.5524 | Y36: =V36*(1+Inputs!$B$49) -> 918408.309 | AB36: =Y36*(1+Inputs!$B$49) -> 945960.5583 | AE36: =AB36*(1+Inputs!$B$49) -> 974339.375 | AH36: =AE36*(1+Inputs!$B$49) -> 1003569.556 | AK36: =AH36*(1+Inputs!$B$49) -> 1033676.643 | AN36: =AK36*(1+Inputs!$B$49) -> 1064686.942 | AQ36: =AN36*(1+Inputs!$B$49) -> 1096627.551 | AT36: =AQ36*(1+Inputs!$B$49) -> 1129526.377 | AW36: =AT36*(1+Inputs!$B$49) -> 1163412.168 | AZ36: =AW36*(1+Inputs!$B$49) -> 1198314.533 | BC36: =AZ36*(1+Inputs!$B$49) -> 1234263.969 | BF36: =BC36*(1+Inputs!$B$49) -> 1271291.888 | BI36: =BF36*(1+Inputs!$B$49) -> 1309430.645 | BL36: =BI36*(1+Inputs!$B$49) -> 1348713.564 | BO36: =BL36*(1+Inputs!$B$49) -> 1389174.971 | BR36: =BO36*(1+Inputs!$B$49) -> 1430850.221 | BU36: =BR36*(1+Inputs!$B$49) -> 1473775.727 | BX36: =BU36*(1+Inputs!$B$49) -> 1517988.999 | CA36: =BX36*(1+Inputs!$B$49) -> 1563528.669 | CD36: =CA36*(1+Inputs!$B$49) -> 1610434.529 | CG36: =CD36*(1+Inputs!$B$49) -> 1658747.565 | CJ36: =CG36*(1+Inputs!$B$49) -> 1708509.992 | CM36: =CJ36*(1+Inputs!$B$49) -> 1759765.292 | CP36: =CM36*(1+Inputs!$B$49) -> 1812558.25
A37: Mortgage Balance at End of Year | D37: =IF(D34>0,(IF((Inputs!B29+CUMPRINC(Inputs!$B$35/12,Inputs!$B$36*12,Inputs!$B$29,1,12,0)-D34)>0,(Inputs!B29+CUMPRINC(Inputs!$B$35/12,Inputs!$B$36*12,Inputs!$B$29,1,12,0)-D34),0)),(Inputs!B29+CUMPRINC(Inputs!$B$35/12,Inputs!$B$36*12,Inputs!$B$29,1,12,0))) -> 681037.0487 | G37: =IF(G34>0,(IF((D37+CUMPRINC(Inputs!$B$35/12,Inputs!$B$36*12,Inputs!$B$29,13,24,0)-G34)>0,(D37+CUMPRINC(Inputs!$B$35/12,Inputs!$B$36*12,Inputs!$B$29,13,24,0)-G34),0)),D37+CUMPRINC(Inputs!$B$35/12,Inputs!$B$36*12,Inputs!$B$29,13,24,0)) -> 672808.3652 | J37: =IF(J34>0,(IF((G37+CUMPRINC(Inputs!$B$35/12,Inputs!$B$36*12,Inputs!$B$29,25,36,0)-J34)>0,(G37+CUMPRINC(Inputs!$B$35/12,Inputs!$B$36*12,Inputs!$B$29,25,36,0)-J34),0)),G37+CUMPRINC(Inputs!$B$35/12,Inputs!$B$36*12,Inputs!$B$29,25,36,0)) -> 664029.4648 | M37: =IF(M34>0,(IF((J37+CUMPRINC(Inputs!$B$35/12,Inputs!$B$36*12,Inputs!$B$29,37,48,0)-M34)>0,(J37+CUMPRINC(Inputs!$B$35/12,Inputs!$B$36*12,Inputs!$B$29,37,48,0)-M34),0)),J37+CUMPRINC(Inputs!$B$35/12,Inputs!$B$36*12,Inputs!$B$29,37,48,0)) -> 654663.5567 | P37: =IF(P34>0,(IF((M37+CUMPRINC(Inputs!$B$35/12,Inputs!$B$36*12,Inputs!$B$29,49,60,0)-P34)>0,(M37+CUMPRINC(Inputs!$B$35/12,Inputs!$B$36*12,Inputs!$B$29,49,60,0)-P34),0)),M37+CUMPRINC(Inputs!$B$35/12,Inputs!$B$36*12,Inputs!$B$29,49,60,0)) -> 644671.3903 | S37: =IF(S34>0,(IF((P37+CUMPRINC(Inputs!$B$35/12,Inputs!$B$36*12,Inputs!$B$29,61,72,0)-S34)>0,(P37+CUMPRINC(Inputs!$B$35/12,Inputs!$B$36*12,Inputs!$B$29,61,72,0)-S34),0)),P37+CUMPRINC(Inputs!$B$35/12,Inputs!$B$36*12,Inputs!$B$29,61,72,0)) -> 634011.0904 | V37: =IF(V34>0,(IF((S37+CUMPRINC(Inputs!$B$35/12,Inputs!$B$36*12,Inputs!$B$29,73,84,0)-V34)>0,(S37+CUMPRINC(Inputs!$B$35/12,Inputs!$B$36*12,Inputs!$B$29,73,84,0)-V34),0)),S37+CUMPRINC(Inputs!$B$35/12,Inputs!$B$36*12,Inputs!$B$29,73,84,0)) -> 622637.9817 | Y37: =IF(Y34>0,(IF((V37+CUMPRINC(Inputs!$B$35/12,Inputs!$B$36*12,Inputs!$B$29,85,96,0)-Y34)>0,(V37+CUMPRINC(Inputs!$B$35/12,Inputs!$B$36*12,Inputs!$B$29,85,96,0)-Y34),0)),V37+CUMPRINC(Inputs!$B$35/12,Inputs!$B$36*12,Inputs!$B$29,85,96,0)) -> 610504.4017 | AB37: =IF(AB34>0,(IF((Y37+CUMPRINC(Inputs!$B$35/12,Inputs!$B$36*12,Inputs!$B$29,97,108,0)-AB34)>0,(Y37+CUMPRINC(Inputs!$B$35/12,Inputs!$B$36*12,Inputs!$B$29,97,108,0)-AB34),0)),Y37+CUMPRINC(Inputs!$B$35/12,Inputs!$B$36*12,Inputs!$B$29,97,108,0)) -> 597559.501 | AE37: =IF(AE34>0,(IF((AB37+CUMPRINC(Inputs!$B$35/12,Inputs!$B$36*12,Inputs!$B$29,109,120,0)-AE34)>0,(AB37+CUMPRINC(Inputs!$B$35/12,Inputs!$B$36*12,Inputs!$B$29,109,120,0)-AE34),0)),AB37+CUMPRINC(Inputs!$B$35/12,Inputs!$B$36*12,Inputs!$B$29,109,120,0)) -> 583749.03 | AH37: =IF(AH34>0,(IF((AE37+CUMPRINC(Inputs!$B$35/12,Inputs!$B$36*12,Inputs!$B$29,121,132,0)-AH34)>0,(AE37+CUMPRINC(Inputs!$B$35/12,Inputs!$B$36*12,Inputs!$B$29,121,132,0)-AH34),0)),AE37+CUMPRINC(Inputs!$B$35/12,Inputs!$B$36*12,Inputs!$B$29,121,132,0)) -> 569015.1117 | AK37: =IF(AK34>0,(IF((AH37+CUMPRINC(Inputs!$B$35/12,Inputs!$B$36*12,Inputs!$B$29,133,144,0)-AK34)>0,(AH37+CUMPRINC(Inputs!$B$35/12,Inputs!$B$36*12,Inputs!$B$29,133,144,0)-AK34),0)),AH37+CUMPRINC(Inputs!$B$35/12,Inputs!$B$36*12,Inputs!$B$29,133,144,0)) -> 553295.9992 | AN37: =IF(AN34>0,(IF((AK37+CUMPRINC(Inputs!$B$35/12,Inputs!$B$36*12,Inputs!$B$29,145,156,0)-AN34)>0,(AK37+CUMPRINC(Inputs!$B$35/12,Inputs!$B$36*12,Inputs!$B$29,145,156,0)-AN34),0)),AK37+CUMPRINC(Inputs!$B$35/12,Inputs!$B$36*12,Inputs!$B$29,145,156,0)) -> 535561.2732 | AQ37: =IF(AQ34>0,(IF((AN37+CUMPRINC(Inputs!$B$35/12,Inputs!$B$36*12,Inputs!$B$29,157,168,0)-AQ34)>0,(AN37+CUMPRINC(Inputs!$B$35/12,Inputs!$B$36*12,Inputs!$B$29,157,168,0)-AQ34),0)),AN37+CUMPRINC(Inputs!$B$35/12,Inputs!$B$36*12,Inputs!$B$29,157,168,0)) -> 514435.3626 | AT37: =IF(AT34>0,(IF((AQ37+CUMPRINC(Inputs!$B$35/12,Inputs!$B$36*12,Inputs!$B$29,169,180,0)-AT34)>0,(AQ37+CUMPRINC(Inputs!$B$35/12,Inputs!$B$36*12,Inputs!$B$29,169,180,0)-AT34),0)),AQ37+CUMPRINC(Inputs!$B$35/12,Inputs!$B$36*12,Inputs!$B$29,169,180,0)) -> 489748.1798 | AW37: =IF(AW34>0,(IF((AT37+CUMPRINC(Inputs!$B$35/12,Inputs!$B$36*12,Inputs!$B$29,181,192,0)-AW34)>0,(AT37+CUMPRINC(Inputs!$B$35/12,Inputs!$B$36*12,Inputs!$B$29,181,192,0)-AW34),0)),AT37+CUMPRINC(Inputs!$B$35/12,Inputs!$B$36*12,Inputs!$B$29,181,192,0)) -> 461320.6899 | AZ37: =IF(AZ34>0,(IF((AW37+CUMPRINC(Inputs!$B$35/12,Inputs!$B$36*12,Inputs!$B$29,193,204,0)-AZ34)>0,(AW37+CUMPRINC(Inputs!$B$35/12,Inputs!$B$36*12,Inputs!$B$29,193,204,0)-AZ34),0)),AW37+CUMPRINC(Inputs!$B$35/12,Inputs!$B$36*12,Inputs!$B$29,193,204,0)) -> 428964.4142 | BC37: =IF(BC34>0,(IF((AZ37+CUMPRINC(Inputs!$B$35/12,Inputs!$B$36*12,Inputs!$B$29,205,216,0)-BC34)>0,(AZ37+CUMPRINC(Inputs!$B$35/12,Inputs!$B$36*12,Inputs!$B$29,205,216,0)-BC34),0)),AZ37+CUMPRINC(Inputs!$B$35/12,Inputs!$B$36*12,Inputs!$B$29,205,216,0)) -> 392480.9048 | BF37: =IF(BF34>0,(IF((BC37+CUMPRINC(Inputs!$B$35/12,Inputs!$B$36*12,Inputs!$B$29,217,228,0)-BF34)>0,(BC37+CUMPRINC(Inputs!$B$35/12,Inputs!$B$36*12,Inputs!$B$29,217,228,0)-BF34),0)),BC37+CUMPRINC(Inputs!$B$35/12,Inputs!$B$36*12,Inputs!$B$29,217,228,0)) -> 351661.1884 | BI37: =IF(BI34>0,(IF((BF37+CUMPRINC(Inputs!$B$35/12,Inputs!$B$36*12,Inputs!$B$29,229,240,0)-BI34)>0,(BF37+CUMPRINC(Inputs!$B$35/12,Inputs!$B$36*12,Inputs!$B$29,229,240,0)-BI34),0)),BF37+CUMPRINC(Inputs!$B$35/12,Inputs!$B$36*12,Inputs!$B$29,229,240,0)) -> 306285.1772 | BL37: =IF(BL34>0,(IF((BI37+CUMPRINC(Inputs!$B$35/12,Inputs!$B$36*12,Inputs!$B$29,241,252,0)-BL34)>0,(BI37+CUMPRINC(Inputs!$B$35/12,Inputs!$B$36*12,Inputs!$B$29,241,252,0)-BL34),0)),BI37+CUMPRINC(Inputs!$B$35/12,Inputs!$B$36*12,Inputs!$B$29,241,252,0)) -> 256121.0461 | BO37: =IF(BO34>0,(IF((BL37+CUMPRINC(Inputs!$B$35/12,Inputs!$B$36*12,Inputs!$B$29,253,264,0)-BO34)>0,(BL37+CUMPRINC(Inputs!$B$35/12,Inputs!$B$36*12,Inputs!$B$29,253,264,0)-BO34),0)),BL37+CUMPRINC(Inputs!$B$35/12,Inputs!$B$36*12,Inputs!$B$29,253,264,0)) -> 200924.5717 | BR37: =IF(BR34>0,(IF((BO37+CUMPRINC(Inputs!$B$35/12,Inputs!$B$36*12,Inputs!$B$29,265,276,0)-BR34)>0,(BO37+CUMPRINC(Inputs!$B$35/12,Inputs!$B$36*12,Inputs!$B$29,265,276,0)-BR34),0)),BO37+CUMPRINC(Inputs!$B$35/12,Inputs!$B$36*12,Inputs!$B$29,265,276,0)) -> 140438.434 | BU37: =IF(BU34>0,(IF((BR37+CUMPRINC(Inputs!$B$35/12,Inputs!$B$36*12,Inputs!$B$29,277,288,0)-BU34)>0,(BR37+CUMPRINC(Inputs!$B$35/12,Inputs!$B$36*12,Inputs!$B$29,277,288,0)-BU34),0)),BR37+CUMPRINC(Inputs!$B$35/12,Inputs!$B$36*12,Inputs!$B$29,277,288,0)) -> 74391.47497 | BX37: =IF(BX34>0,(IF((BU37+CUMPRINC(Inputs!$B$35/12,Inputs!$B$36*12,Inputs!$B$29,289,300,0)-BX34)>0,(BU37+CUMPRINC(Inputs!$B$35/12,Inputs!$B$36*12,Inputs!$B$29,289,300,0)-BX34),0)),BU37+CUMPRINC(Inputs!$B$35/12,Inputs!$B$36*12,Inputs!$B$29,289,300,0)) -> 2497.914846 | CA37: =IF(CA34>0,(IF((BX37+CUMPRINC(Inputs!$B$35/12,Inputs!$B$36*12,Inputs!$B$29,301,312,0)-CA34)>0,(BX37+CUMPRINC(Inputs!$B$35/12,Inputs!$B$36*12,Inputs!$B$29,301,312,0)-CA34),0)),BX37+CUMPRINC(Inputs!$B$35/12,Inputs!$B$36*12,Inputs!$B$29,301,312,0)) -> 0 | CD37: =IF(CD34>0,(IF((CA37+CUMPRINC(Inputs!$B$35/12,Inputs!$B$36*12,Inputs!$B$29,313,324,0)-CD34)>0,(CA37+CUMPRINC(Inputs!$B$35/12,Inputs!$B$36*12,Inputs!$B$29,313,324,0)-CD34),0)),CA37+CUMPRINC(Inputs!$B$35/12,Inputs!$B$36*12,Inputs!$B$29,313,324,0)) -> 0 | CG37: =IF(CG34>0,(IF((CD37+CUMPRINC(Inputs!$B$35/12,Inputs!$B$36*12,Inputs!$B$29,325,336,0)-CG34)>0,(CD37+CUMPRINC(Inputs!$B$35/12,Inputs!$B$36*12,Inputs!$B$29,325,336,0)-CG34),0)),CD37+CUMPRINC(Inputs!$B$35/12,Inputs!$B$36*12,Inputs!$B$29,325,336,0)) -> 0 | CJ37: =IF(CJ34>0,(IF((CG37+CUMPRINC(Inputs!$B$35/12,Inputs!$B$36*12,Inputs!$B$29,337,348,0)-CJ34)>0,(CG37+CUMPRINC(Inputs!$B$35/12,Inputs!$B$36*12,Inputs!$B$29,337,348,0)-CJ34),0)),CG37+CUMPRINC(Inputs!$B$35/12,Inputs!$B$36*12,Inputs!$B$29,337,348,0)) -> 0 | CM37: =IF(CM34>0,(IF((CJ37+CUMPRINC(Inputs!$B$35/12,Inputs!$B$36*12,Inputs!$B$29,349,360,0)-CM34)>0,(CJ37+CUMPRINC(Inputs!$B$35/12,Inputs!$B$36*12,Inputs!$B$29,349,360,0)-CM34),0)),CJ37+CUMPRINC(Inputs!$B$35/12,Inputs!$B$36*12,Inputs!$B$29,349,360,0)) -> 0 | CP37: 0
A38: Total Equity | D38: =D36-D37 -> 65712.95131 | G38: =G36-G37 -> 96344.13478 | J38: =J36-J37 -> 128197.6102 | M38: =M36-M37 -> 161330.3305 | P38: =P36-P37 -> 195802.3135 | S38: =S36-S37 -> 231676.8246 | V38: =V36-V37 -> 269020.5707 | Y38: =Y36-Y37 -> 307903.9073 | AB38: =AB36-AB37 -> 348401.0572 | AE38: =AE36-AE37 -> 390590.345 | AH38: =AH36-AH37 -> 434554.4445 | AK38: =AK36-AK37 -> 480380.6438 | AN38: =AN36-AN37 -> 529125.669 | AQ38: =AQ36-AQ37 -> 582192.1879 | AT38: =AT36-AT37 -> 639778.1972 | AW38: =AW36-AW37 -> 702091.4784 | AZ38: =AZ36-AZ37 -> 769350.1192 | BC38: =BC36-BC37 -> 841783.0646 | BF38: =BF36-BF37 -> 919630.7001 | BI38: =BI36-BI37 -> 1003145.468 | BL38: =BL36-BL37 -> 1092592.518 | BO38: =BO36-BO37 -> 1188250.4 | BR38: =BR36-BR37 -> 1290411.787 | BU38: =BU36-BU37 -> 1399384.252 | BX38: =BX36-BX37 -> 1515491.084 | CA38: =CA36-CA37 -> 1563528.669 | CD38: =CD36-CD37 -> 1610434.529 | CG38: =CG36-CG37 -> 1658747.565 | CJ38: =CJ36-CJ37 -> 1708509.992 | CM38: =CM36-CM37 -> 1759765.292 | CP38: =CP36-CP37 -> 1812558.25
A40: ROI QuadrantTM
A41: Appreciation | D41: =D36-$M$2 -> 21750 | E41: =(D36-$M$2)/$M$7 -> 0.3690193417 | G41: =G36-D36 -> 22402.5 | H41: =(G36-D36)/$M$7 -> 0.380089922 | J41: =J36-G36 -> 23074.575 | K41: =(J36-G36)/$M$7 -> 0.3914926196 | M41: =M36-J36 -> 23766.81225 | N41: =(M36-J36)/$M$7 -> 0.4032373982 | P41: =P36-M36 -> 24479.81662 | Q41: =(P36-M36)/$M$7 -> 0.4153345201 | S41: =S36-P36 -> 25214.21112 | T41: =(S36-P36)/$M$7 -> 0.4277945558 | V41: =V36-S36 -> 25970.63745 | W41: =(V36-S36)/$M$7 -> 0.4406283924 | Y41: =Y36-V36 -> 26749.75657 | Z41: =(Y36-V36)/$M$7 -> 0.4538472442 | AB41: =AB36-Y36 -> 27552.24927 | AC41: =(AB36-Y36)/$M$7 -> 0.4674626615 | AE41: =AE36-AB36 -> 28378.81675 | AF41: =(AE36-AB36)/$M$7 -> 0.4814865414 | AH41: =AH36-AE36 -> 29230.18125 | AI41: =(AH36-AE36)/$M$7 -> 0.4959311376 | AK41: =AK36-AH36 -> 30107.08669 | AL41: =(AK36-AH36)/$M$7 -> 0.5108090717 | AN41: =AN36-AK36 -> 31010.29929 | AO41: =(AN36-AK36)/$M$7 -> 0.5261333439 | AQ41: =AQ36-AN36 -> 31940.60827 | AR41: =(AQ36-AN36)/$M$7 -> 0.5419173442 | AT41: =AT36-AQ36 -> 32898.82652 | AU41: =(AT36-AQ36)/$M$7 -> 0.5581748645 | AW41: =AW36-AT36 -> 33885.79131 | AX41: =(AW36-AT36)/$M$7 -> 0.5749201105 | AZ41: =AZ36-AW36 -> 34902.36505 | BA41: =(AZ36-AW36)/$M$7 -> 0.5921677138 | BC41: =BC36-AZ36 -> 35949.436 | BD41: =(BC36-AZ36)/$M$7 -> 0.6099327452 | BF41: =BF36-BC36 -> 37027.91908 | BG41: =(BF36-BC36)/$M$7 -> 0.6282307276 | BI41: =BI36-BF36 -> 38138.75665 | BJ41: =(BI36-BF36)/$M$7 -> 0.6470776494 | BL41: =BL36-BI36 -> 39282.91935 | BM41: =(BL36-BI36)/$M$7 -> 0.6664899789 | BO41: =BO36-BL36 -> 40461.40693 | BP41: =(BO36-BL36)/$M$7 -> 0.6864846782 | BR41: =BR36-BO36 -> 41675.24914 | BS41: =(BR36-BO36)/$M$7 -> 0.7070792186 | BU41: =BU36-BR36 -> 42925.50662 | BV41: =(BU36-BR36)/$M$7 -> 0.7282915951 | BX41: =BX36-BU36 -> 44213.27182 | BY41: =(BX36-BU36)/$M$7 -> 0.750140343 | CA41: =CA36-BX36 -> 45539.66997 | CB41: =(CA36-BX36)/$M$7 -> 0.7726445533 | CD41: =CD36-CA36 -> 46905.86007 | CE41: =(CD36-CA36)/$M$7 -> 0.7958238899 | CG41: =CG36-CD36 -> 48313.03587 | CH41: =(CG36-CD36)/$M$7 -> 0.8196986066 | CJ41: =CJ36-CG36 -> 49762.42695 | CK41: =(CJ36-CG36)/$M$7 -> 0.8442895648 | CM41: =CM36-CJ36 -> 51255.29976 | CN41: =(CM36-CJ36)/$M$7 -> 0.8696182517 | CP41: =CP36-CM36 -> 52792.95875 | CQ41: =(CP36-CM36)/$M$7 -> 0.8957067993
A42: Cash Flow | D42: =IF(D37>0,IF(D34<0,D34,0),D34) -> -20058.07917 | E42: =D42/$M$7 -> -0.3403135251 | G42: =IF(G37>0,IF(G34<0,G34,0),G34) -> -18707.95917 | H42: =G42/$M$7 -> -0.3174068403 | J42: =IF(J37>0,IF(J34<0,J34,0),J34) -> -17264.94357 | K42: =J42/$M$7 -> -0.2929240511 | M42: =IF(M37>0,IF(M34<0,M34,0),M34) -> -15761.09062 | N42: =M42/$M$7 -> -0.2674090706 | P42: =IF(P37>0,IF(P34<0,P34,0),P34) -> -14193.87333 | Q42: =P42/$M$7 -> -0.2408190249 | S42: =IF(S37>0,IF(S34<0,S34,0),S34) -> -12560.66081 | T42: =S42/$M$7 -> -0.2131092775 | V42: =IF(V37>0,IF(V34<0,V34,0),V34) -> -10858.71407 | W42: =V42/$M$7 -> -0.1842333571 | Y42: =IF(Y37>0,IF(Y34<0,Y34,0),Y34) -> -9085.181554 | Z42: =Y42/$M$7 -> -0.1541428835 | AB42: =IF(AB37>0,IF(AB34<0,AB34,0),AB34) -> -7237.094601 | AC42: =AB42/$M$7 -> -0.122787489 | AE42: =IF(AE37>0,IF(AE34<0,AE34,0),AE34) -> -5311.362639 | AF42: =AE42/$M$7 -> -0.09011473768 | AH42: =IF(AH37>0,IF(AH34<0,AH34,0),AH34) -> -3304.76822 | AI42: =AH42/$M$7 -> -0.05607004106 | AK42: =IF(AK37>0,IF(AK34<0,AK34,0),AK34) -> -1213.961852 | AL42: =AK42/$M$7 -> -0.02059657028 | AN42: =IF(AN37>0,IF(AN34<0,AN34,0),AN34) -> 0 | AO42: =AN42/$M$7 -> 0 | AQ42: =IF(AQ37>0,IF(AQ34<0,AQ34,0),AQ34) -> 0 | AR42: =AQ42/$M$7 -> 0 | AT42: =IF(AT37>0,IF(AT34<0,AT34,0),AT34) -> 0 | AU42: =AT42/$M$7 -> 0 | AW42: =IF(AW37>0,IF(AW34<0,AW34,0),AW34) -> 0 | AX42: =AW42/$M$7 -> 0 | AZ42: =IF(AZ37>0,IF(AZ34<0,AZ34,0),AZ34) -> 0 | BA42: =AZ42/$M$7 -> 0 | BC42: =IF(BC37>0,IF(BC34<0,BC34,0),BC34) -> 0 | BD42: =BC42/$M$7 -> 0 | BF42: =IF(BF37>0,IF(BF34<0,BF34,0),BF34) -> 0 | BG42: =BF42/$M$7 -> 0 | BI42: =IF(BI37>0,IF(BI34<0,BI34,0),BI34) -> 0 | BJ42: =BI42/$M$7 -> 0 | BL42: =IF(BL37>0,IF(BL34<0,BL34,0),BL34) -> 0 | BM42: =BL42/$M$7 -> 0 | BO42: =IF(BO37>0,IF(BO34<0,BO34,0),BO34) -> 0 | BP42: =BO42/$M$7 -> 0 | BR42: =IF(BR37>0,IF(BR34<0,BR34,0),BR34) -> 0 | BS42: =BR42/$M$7 -> 0 | BU42: =IF(BU37>0,IF(BU34<0,BU34,0),BU34) -> 0 | BV42: =BU42/$M$7 -> 0 | BX42: =IF(BX37>0,IF(BX34<0,BX34,0),BX34) -> 0 | BY42: =BX42/$M$7 -> 0 | CA42: =IF(CA37>0,IF(CA34<0,CA34,0),CA34) -> 39140.0367 | CB42: =CA42/$M$7 -> 0.6640657736 | CD42: =IF(CD37>0,IF(CD34<0,CD34,0),CD34) -> 95190.34911 | CE42: =CD42/$M$7 -> 1.615038159 | CG42: =IF(CG37>0,IF(CG34<0,CG34,0),CG34) -> 99215.48734 | CH42: =CG42/$M$7 -> 1.683330291 | CJ42: =IF(CJ37>0,IF(CJ34<0,CJ34,0),CJ34) -> 103408.1568 | CK42: =CJ42/$M$7 -> 1.754464826 | CM42: =IF(CM37>0,IF(CM34<0,CM34,0),CM34) -> 107775.2546 | CN42: =CM42/$M$7 -> 1.828558782 | CP42: =IF(CP37>0,IF(CP34<0,CP34,0),CP34) -> 112323.9594 | CQ42: =CP42/$M$7 -> 1.905733957
A43: Debt Paydown | D43: =M3-$D$37 -> 7712.951314 | E43: =(M3-D37)/M7 -> 0.1308610674 | G43: =D37-G37 -> 8228.683469 | H43: =(D37-G37)/$M$7 -> 0.1396111888 | J43: =G37-J37 -> 8778.900433 | K43: =(G37-J37)/$M$7 -> 0.1489463935 | M43: =J37-M37 -> 9365.908058 | N43: =(J37-M37)/$M$7 -> 0.1589058035 | P43: =M37-P37 -> 9992.16638 | Q43: =(M37-P37)/$M$7 -> 0.1695311568 | S43: =P37-S37 -> 10660.29992 | T43: =(P37-S37)/$M$7 -> 0.1808669821 | V43: =S37-V37 -> 11373.10871 | W43: =(S37-V37)/$M$7 -> 0.1929607857 | Y43: =V37-Y37 -> 12133.57998 | Z43: =(V37-Y37)/$M$7 -> 0.2058632503 | AB43: =Y37-AB37 -> 12944.90071 | AC43: =(Y37-AB37)/$M$7 -> 0.2196284478 | AE43: =AB37-AE37 -> 13810.47101 | AF43: =(AB37-AE37)/$M$7 -> 0.2343140653 | AH43: =AE37-AH37 -> 14733.91829 | AI43: =(AE37-AH37)/$M$7 -> 0.2499816473 | AK43: =AH37-AK37 -> 15719.11256 | AL43: =(AH37-AK37)/$M$7 -> 0.2666968538 | AN43: =AK37-AN37 -> 17734.72596 | AO43: =(AK37-AN37)/$M$7 -> 0.30089457 | AQ43: =AN37-AQ37 -> 21125.9106 | AR43: =(AN37-AQ37)/$M$7 -> 0.3584307872 | AT43: =AQ37-AT37 -> 24687.18281 | AU43: =(AQ37-AT37)/$M$7 -> 0.4188527792 | AW43: =AT37-AW37 -> 28427.48991 | AX43: =(AT37-AW37)/$M$7 -> 0.4823123499 | AZ43: =AW37-AZ37 -> 32356.27568 | BA43: =(AW37-AZ37)/$M$7 -> 0.5489697266 | BC43: =AZ37-BC37 -> 36483.50939 | BD43: =(AZ37-BC37)/$M$7 -> 0.6189940513 | BF43: =BC37-BF37 -> 40819.71645 | BG43: =(BC37-BF37)/$M$7 -> 0.6925639031 | BI43: =BF37-BI37 -> 45376.01114 | BJ43: =(BF37-BI37)/$M$7 -> 0.769867851 | BL43: =BI37-BL37 -> 50164.13115 | BM43: =(BI37-BL37)/$M$7 -> 0.8511050415 | BO43: =BL37-BO37 -> 55196.47435 | BP43: =(BL37-BO37)/$M$7 -> 0.936485822 | BR43: =BO37-BR37 -> 60486.13777 | BS43: =(BO37-BR37)/$M$7 -> 1.026232402 | BU43: =BR37-BU37 -> 66046.95901 | BV43: =(BR37-BU37)/$M$7 -> 1.120579556 | BX43: =BU37-BX37 -> 71893.56012 | BY43: =(BU37-BX37)/$M$7 -> 1.219775367 | CA43: =BX37-CA37 -> 2497.914846 | CB43: =(BX37-CA37)/$M$7 -> 0.04238063871 | CD43: =CA37-CD37 -> 0 | CE43: =(CA37-CD37)/$M$7 -> 0 | CG43: =CD37-CG37 -> 0 | CH43: =(CD37-CG37)/$M$7 -> 0 | CJ43: =CG37-CJ37 -> 0 | CK43: =(CG37-CJ37)/$M$7 -> 0 | CM43: =CJ37-CM37 -> 0 | CN43: =(CJ37-CM37)/$M$7 -> 0 | CP43: =CM37-CP37 -> 0 | CQ43: =(CM37-CP37)/$M$7 -> 0
A44: Cash Flow From Depreciation | D44: =(Inputs!$B$24*0.85/27.5)*Inputs!$B$51 -> 7170.909091 | E44: =((Inputs!$B$24*0.85/27.5)*Inputs!$B$51)/$M$7 -> 0.1216645587 | G44: =(Inputs!$B$24*0.85/27.5)*Inputs!$B$51 -> 7170.909091 | H44: =((Inputs!$B$24*0.85/27.5)*Inputs!$B$51)/$M$7 -> 0.1216645587 | J44: =(Inputs!$B$24*0.85/27.5)*Inputs!$B$51 -> 7170.909091 | K44: =((Inputs!$B$24*0.85/27.5)*Inputs!$B$51)/$M$7 -> 0.1216645587 | M44: =(Inputs!$B$24*0.85/27.5)*Inputs!$B$51 -> 7170.909091 | N44: =((Inputs!$B$24*0.85/27.5)*Inputs!$B$51)/$M$7 -> 0.1216645587 | P44: =(Inputs!$B$24*0.85/27.5)*Inputs!$B$51 -> 7170.909091 | Q44: =((Inputs!$B$24*0.85/27.5)*Inputs!$B$51)/$M$7 -> 0.1216645587 | S44: =(Inputs!$B$24*0.85/27.5)*Inputs!$B$51 -> 7170.909091 | T44: =((Inputs!$B$24*0.85/27.5)*Inputs!$B$51)/$M$7 -> 0.1216645587 | V44: =(Inputs!$B$24*0.85/27.5)*Inputs!$B$51 -> 7170.909091 | W44: =((Inputs!$B$24*0.85/27.5)*Inputs!$B$51)/$M$7 -> 0.1216645587 | Y44: =(Inputs!$B$24*0.85/27.5)*Inputs!$B$51 -> 7170.909091 | Z44: =((Inputs!$B$24*0.85/27.5)*Inputs!$B$51)/$M$7 -> 0.1216645587 | AB44: =(Inputs!$B$24*0.85/27.5)*Inputs!$B$51 -> 7170.909091 | AC44: =((Inputs!$B$24*0.85/27.5)*Inputs!$B$51)/$M$7 -> 0.1216645587 | AE44: =(Inputs!$B$24*0.85/27.5)*Inputs!$B$51 -> 7170.909091 | AF44: =((Inputs!$B$24*0.85/27.5)*Inputs!$B$51)/$M$7 -> 0.1216645587 | AH44: =(Inputs!$B$24*0.85/27.5)*Inputs!$B$51 -> 7170.909091 | AI44: =((Inputs!$B$24*0.85/27.5)*Inputs!$B$51)/$M$7 -> 0.1216645587 | AK44: =(Inputs!$B$24*0.85/27.5)*Inputs!$B$51 -> 7170.909091 | AL44: =((Inputs!$B$24*0.85/27.5)*Inputs!$B$51)/$M$7 -> 0.1216645587 | AN44: =(Inputs!$B$24*0.85/27.5)*Inputs!$B$51 -> 7170.909091 | AO44: =((Inputs!$B$24*0.85/27.5)*Inputs!$B$51)/$M$7 -> 0.1216645587 | AQ44: =(Inputs!$B$24*0.85/27.5)*Inputs!$B$51 -> 7170.909091 | AR44: =((Inputs!$B$24*0.85/27.5)*Inputs!$B$51)/$M$7 -> 0.1216645587 | AT44: =(Inputs!$B$24*0.85/27.5)*Inputs!$B$51 -> 7170.909091 | AU44: =((Inputs!$B$24*0.85/27.5)*Inputs!$B$51)/$M$7 -> 0.1216645587 | AW44: =(Inputs!$B$24*0.85/27.5)*Inputs!$B$51 -> 7170.909091 | AX44: =((Inputs!$B$24*0.85/27.5)*Inputs!$B$51)/$M$7 -> 0.1216645587 | AZ44: =(Inputs!$B$24*0.85/27.5)*Inputs!$B$51 -> 7170.909091 | BA44: =((Inputs!$B$24*0.85/27.5)*Inputs!$B$51)/$M$7 -> 0.1216645587 | BC44: =(Inputs!$B$24*0.85/27.5)*Inputs!$B$51 -> 7170.909091 | BD44: =((Inputs!$B$24*0.85/27.5)*Inputs!$B$51)/$M$7 -> 0.1216645587 | BF44: =(Inputs!$B$24*0.85/27.5)*Inputs!$B$51 -> 7170.909091 | BG44: =((Inputs!$B$24*0.85/27.5)*Inputs!$B$51)/$M$7 -> 0.1216645587 | BI44: =(Inputs!$B$24*0.85/27.5)*Inputs!$B$51 -> 7170.909091 | BJ44: =((Inputs!$B$24*0.85/27.5)*Inputs!$B$51)/$M$7 -> 0.1216645587 | BL44: =(Inputs!$B$24*0.85/27.5)*Inputs!$B$51 -> 7170.909091 | BM44: =((Inputs!$B$24*0.85/27.5)*Inputs!$B$51)/$M$7 -> 0.1216645587 | BO44: =(Inputs!$B$24*0.85/27.5)*Inputs!$B$51 -> 7170.909091 | BP44: =((Inputs!$B$24*0.85/27.5)*Inputs!$B$51)/$M$7 -> 0.1216645587 | BR44: =(Inputs!$B$24*0.85/27.5)*Inputs!$B$51 -> 7170.909091 | BS44: =((Inputs!$B$24*0.85/27.5)*Inputs!$B$51)/$M$7 -> 0.1216645587 | BU44: =(Inputs!$B$24*0.85/27.5)*Inputs!$B$51 -> 7170.909091 | BV44: =((Inputs!$B$24*0.85/27.5)*Inputs!$B$51)/$M$7 -> 0.1216645587 | BX44: =(Inputs!$B$24*0.85/27.5)*Inputs!$B$51 -> 7170.909091 | BY44: =((Inputs!$B$24*0.85/27.5)*Inputs!$B$51)/$M$7 -> 0.1216645587 | CA44: =(Inputs!$B$24*0.85/27.5)*Inputs!$B$51 -> 7170.909091 | CB44: =((Inputs!$B$24*0.85/27.5)*Inputs!$B$51)/$M$7 -> 0.1216645587 | CD44: =((Inputs!$B$24*0.85/27.5)*Inputs!$B$51)/2 -> 3585.454545 | CE44: =(((Inputs!$B$24*0.85/27.5)*Inputs!$B$51)/2)/$M$7 -> 0.06083227936 | CG44: 0 | CH44: 0 | CJ44: 0 | CK44: 0 | CM44: 0 | CN44: 0 | CP44: 0 | CQ44: 0
A45: Total Return on Investment | D45: =SUM(D41:D44) -> 16575.78124 | E45: =SUM(E41:E44) -> 0.2812314427 | G45: =SUM(G41:G44) -> 19094.13339 | H45: =SUM(H41:H44) -> 0.3239588292 | J45: =SUM(J41:J44) -> 21759.44095 | K45: =SUM(K41:K44) -> 0.3691795208 | M45: =SUM(M41:M44) -> 24542.53878 | N45: =SUM(N41:N44) -> 0.4163986898 | P45: =SUM(P41:P44) -> 27449.01876 | Q45: =SUM(Q41:Q44) -> 0.4657112107 | S45: =SUM(S41:S44) -> 30484.75932 | T45: =SUM(T41:T44) -> 0.5172168191 | V45: =SUM(V41:V44) -> 33655.94118 | W45: =SUM(W41:W44) -> 0.5710203797 | Y45: =SUM(Y41:Y44) -> 36969.06408 | Z45: =SUM(Z41:Z44) -> 0.6272321697 | AB45: =SUM(AB41:AB44) -> 40430.96447 | AC45: =SUM(AC41:AC44) -> 0.685968179 | AE45: =SUM(AE41:AE44) -> 44048.83421 | AF45: =SUM(AF41:AF44) -> 0.7473504277 | AH45: =SUM(AH41:AH44) -> 47830.24041 | AI45: =SUM(AI41:AI44) -> 0.8115073026 | AK45: =SUM(AK41:AK44) -> 51783.14649 | AL45: =SUM(AL41:AL44) -> 0.878573914 | AN45: =SUM(AN41:AN44) -> 55915.93434 | AO45: =SUM(AO41:AO44) -> 0.9486924726 | AQ45: =SUM(AQ41:AQ44) -> 60237.42796 | AR45: =SUM(AR41:AR44) -> 1.02201269 | AT45: =SUM(AT41:AT44) -> 64756.91841 | AU45: =SUM(AU41:AU44) -> 1.098692202 | AW45: =SUM(AW41:AW44) -> 69484.19031 | AX45: =SUM(AX41:AX44) -> 1.178897019 | AZ45: =SUM(AZ41:AZ44) -> 74429.54983 | BA45: =SUM(BA41:BA44) -> 1.262801999 | BC45: =SUM(BC41:BC44) -> 79603.85448 | BD45: =SUM(BD41:BD44) -> 1.350591355 | BF45: =SUM(BF41:BF44) -> 85018.54462 | BG45: =SUM(BG41:BG44) -> 1.442459189 | BI45: =SUM(BI41:BI44) -> 90685.67688 | BJ45: =SUM(BJ41:BJ44) -> 1.538610059 | BL45: =SUM(BL41:BL44) -> 96617.95959 | BM45: =SUM(BM41:BM44) -> 1.639259579 | BO45: =SUM(BO41:BO44) -> 102828.7904 | BP45: =SUM(BP41:BP44) -> 1.744635059 | BR45: =SUM(BR41:BR44) -> 109332.296 | BS45: =SUM(BS41:BS44) -> 1.854976179 | BU45: =SUM(BU41:BU44) -> 116143.3747 | BV45: =SUM(BV41:BV44) -> 1.970535709 | BX45: =SUM(BX41:BX44) -> 123277.741 | BY45: =SUM(BY41:BY44) -> 2.091580269 | CA45: =SUM(CA41:CA44) -> 94348.5306 | CB45: =SUM(CB41:CB44) -> 1.600755524 | CD45: =SUM(CD41:CD44) -> 145681.6637 | CE45: =SUM(CE41:CE44) -> 2.471694328 | CG45: =SUM(CG41:CG44) -> 147528.5232 | CH45: =SUM(CH41:CH44) -> 2.503028897 | CJ45: =SUM(CJ41:CJ44) -> 153170.5838 | CK45: =SUM(CK41:CK44) -> 2.59875439 | CM45: =SUM(CM41:CM44) -> 159030.5543 | CN45: =SUM(CN41:CN44) -> 2.698177033 | CP45: =SUM(CP41:CP44) -> 165116.9182 | CQ45: =SUM(CQ41:CQ44) -> 2.801440756
A47: =Inputs!A84 -> This sheet is for informational purposes only. This is not a commitment, approval or guarantee to lend. The figures included in this worksheet are entirely dependent on the information that you input. These figures and calculations are considered accurate, but not guaranteed. Joe Massey and Synergy One Lending do not represent, warrant or guarantee these numbers. James Orr and Real Estate Financial Planner LLC do not represent, warrant or guarantee these numbers. All information is for preliminary analysis and calculations only. Please contact your tax advisor, CPA, financial planner, attorney, insurance agent, real estate agent or other properly licensed professional for additional information as needed. This spreadsheet is copyrighted as of 2011 through present day. Any use modifications or distributions are only with permission of Joe Massey.
B50: =-M7 -> -58940 | D50: =D34*0.7 -> -14040.65542 | G50: =G34*0.7 -> -13095.57142 | J50: =J34*0.7 -> -12085.4605 | M50: =M34*0.7 -> -11032.76344 | P50: =P51+P56 -> 111484.6562 | S50: =IRR(B50:P50) -> 0.005335487614 | T50: IRR
P51: =P34*0.7 -> -9935.711331
P52: =P36*0.93 -> 781640.5446 | Q52: Net Future value after 7% sales cost
P53: =P52-P37 -> 136969.1543 | Q53: Pre Tax Terminal Value
P54: =P52-M2+M5+M6 -> 79330.5446 | Q54: Capital Gain Base
P55: =P54*0.196 -> 15548.78674 | Q55: Capital Gains Tax at 19.6%
P56: =P53-P55 -> 121420.3675 | Q56: After Tax Terminal Value
C60: Year 0 | D60: Year 1 | E60: Year 2 | F60: Year 3 | G60: Year 4 | H60: Year 5 | I60: Year 6 | J60: Year 7 | K60: Year 8 | L60: Year 9 | M60: Year 10 | N60: Year 11 | O60: Year 12 | P60: Year 13 | Q60: Year 14 | R60: Year 15 | S60: Year 16 | T60: Year 17 | U60: Year 18 | V60: Year 19 | W60: Year 20 | X60: Year 21 | Y60: Year 22 | Z60: Year 23 | AA60: Year 24 | AB60: Year 25 | AC60: Year 26 | AD60: Year 27 | AE60: Year 28 | AF60: Year 29 | AG60: Year 30 | AH60: Year 31
B61: Annual Cash Flow Before Taxes | D61: =D34 -> -20058.07917 | E61: =G34 -> -18707.95917 | F61: =J34 -> -17264.94357 | G61: =M34 -> -15761.09062 | H61: =P34 -> -14193.87333 | I61: =S34 -> -12560.66081 | J61: =V34 -> -10858.71407 | K61: =Y34 -> -9085.181554 | L61: =AB34 -> -7237.094601 | M61: =AE34 -> -5311.362639 | N61: =AH34 -> -3304.76822 | O61: =AK34 -> -1213.961852 | P61: =AN34 -> 964.543388 | Q61: =AQ34 -> 3234.377455 | R61: =AT34 -> 5599.319159 | S61: =AW34 -> 8063.302234 | T61: =AZ34 -> 10630.42165 | U61: =BC34 -> 13304.94016 | V61: =BF34 -> 16091.29517 | W61: =BI34 -> 18994.10581 | X61: =BL34 -> 22018.18034 | Y61: =BO34 -> 25168.52386 | Z61: =BR34 -> 28450.34633 | AA61: =BU34 -> 31869.07084 | AB61: =BX34 -> 35430.34235 | AC61: =CA34 -> 39140.0367 | AD61: =CD34 -> 95190.34911 | AE61: =CG34 -> 99215.48734 | AF61: =CJ34 -> 103408.1568 | AG61: =CM34 -> 107775.2546 | AH61: =CP34 -> 112323.9594
B64: ROI QuadrantTM | C64: 0 | D64: 1 | E64: 2 | F64: 3 | G64: 4 | H64: 5 | I64: 6 | J64: 7 | K64: 8 | L64: 9 | M64: 10 | N64: 11 | O64: 12 | P64: 13 | Q64: 14 | R64: 15 | S64: 16 | T64: 17 | U64: 18 | V64: 19 | W64: 20 | X64: 21 | Y64: 22 | Z64: 23 | AA64: 24 | AB64: 25 | AC64: 26 | AD64: 27 | AE64: 28 | AF64: 29 | AG64: 30 | AH64: 31
B65: Appreciation | C65: 0 | D65: =D41 -> 21750 | E65: =G41 -> 22402.5 | F65: =J41 -> 23074.575 | G65: =M41 -> 23766.81225 | H65: =P41 -> 24479.81662 | I65: =S41 -> 25214.21112 | J65: =V41 -> 25970.63745 | K65: =Y41 -> 26749.75657 | L65: =AB41 -> 27552.24927 | M65: =AE41 -> 28378.81675 | N65: =AH41 -> 29230.18125 | O65: =AK41 -> 30107.08669 | P65: =AN41 -> 31010.29929 | Q65: =AQ41 -> 31940.60827 | R65: =AT41 -> 32898.82652 | S65: =AW41 -> 33885.79131 | T65: =AZ41 -> 34902.36505 | U65: =BC41 -> 35949.436 | V65: =BF41 -> 37027.91908 | W65: =BI41 -> 38138.75665 | X65: =BL41 -> 39282.91935 | Y65: =BO41 -> 40461.40693 | Z65: =BR41 -> 41675.24914 | AA65: =BU41 -> 42925.50662 | AB65: =BX41 -> 44213.27182 | AC65: =CA41 -> 45539.66997 | AD65: =CD41 -> 46905.86007 | AE65: =CG41 -> 48313.03587 | AF65: =CJ41 -> 49762.42695 | AG65: =CM41 -> 51255.29976 | AH65: =CP41 -> 52792.95875
B66: Cash Flow | C66: 0 | D66: =D42 -> -20058.07917 | E66: =G42 -> -18707.95917 | F66: =J42 -> -17264.94357 | G66: =M42 -> -15761.09062 | H66: =P42 -> -14193.87333 | I66: =S42 -> -12560.66081 | J66: =V42 -> -10858.71407 | K66: =Y42 -> -9085.181554 | L66: =AB42 -> -7237.094601 | M66: =AE42 -> -5311.362639 | N66: =AH42 -> -3304.76822 | O66: =AK42 -> -1213.961852 | P66: =AN42 -> 0 | Q66: =AQ42 -> 0 | R66: =AT42 -> 0 | S66: =AW42 -> 0 | T66: =AZ42 -> 0 | U66: =BC42 -> 0 | V66: =BF42 -> 0 | W66: =BI42 -> 0 | X66: =BL42 -> 0 | Y66: =BO42 -> 0 | Z66: =BR42 -> 0 | AA66: =BU42 -> 0 | AB66: =BX42 -> 0 | AC66: =CA42 -> 39140.0367 | AD66: =CD42 -> 95190.34911 | AE66: =CG42 -> 99215.48734 | AF66: =CJ42 -> 103408.1568 | AG66: =CM42 -> 107775.2546 | AH66: =CP42 -> 112323.9594
B67: Debt Paydown | C67: 0 | D67: 7712.951314 | E67: 8228.683469 | F67: 8778.900433 | G67: 9365.908058 | H67: 9992.16638 | I67: 10660.29992 | J67: 11373.10871 | K67: 12133.57998 | L67: 12944.90071 | M67: 13810.47101 | N67: 14733.91829 | O67: 15719.11256 | P67: 17734.72596 | Q67: 21125.9106 | R67: 24687.18281 | S67: 28427.48991 | T67: 32356.27568 | U67: 36483.50939 | V67: 40819.71645 | W67: 45376.01114 | X67: 50164.13115 | Y67: 55196.47435 | Z67: 60486.13777 | AA67: 66046.95901 | AB67: 71893.56012 | AC67: 2497.914846 | AD67: 0 | AE67: 0 | AF67: 0 | AG67: 0 | AH67: 0
B68: Depreciation | C68: 0 | D68: 7170.909091 | E68: 7170.909091 | F68: 7170.909091 | G68: 7170.909091 | H68: 7170.909091 | I68: 7170.909091 | J68: 7170.909091 | K68: 7170.909091 | L68: 7170.909091 | M68: 7170.909091 | N68: 7170.909091 | O68: 7170.909091 | P68: 7170.909091 | Q68: 7170.909091 | R68: 7170.909091 | S68: 7170.909091 | T68: 7170.909091 | U68: 7170.909091 | V68: 7170.909091 | W68: 7170.909091 | X68: 7170.909091 | Y68: 7170.909091 | Z68: 7170.909091 | AA68: 7170.909091 | AB68: 7170.909091 | AC68: 7170.909091 | AD68: 3585.454545 | AE68: 0 | AF68: 0 | AG68: 0 | AH68: 0
B69: Total Return on Investment | C69: 0 | D69: 16575.78124 | E69: 19094.13339 | F69: 21759.44095 | G69: 24542.53878 | H69: 27449.01876 | I69: 30484.75932 | J69: 33655.94118 | K69: 36969.06408 | L69: 40430.96447 | M69: 44048.83421 | N69: 47830.24041 | O69: 51783.14649 | P69: 55915.93434 | Q69: 60237.42796 | R69: 64756.91841 | S69: 69484.19031 | T69: 74429.54983 | U69: 79603.85448 | V69: 85018.54462 | W69: 90685.67688 | X69: 96617.95959 | Y69: 102828.7904 | Z69: 109332.296 | AA69: 116143.3747 | AB69: 123277.741 | AC69: 94348.5306 | AD69: 145681.6637 | AE69: 147528.5232 | AF69: 153170.5838 | AG69: 159030.5543 | AH69: 165116.9182
C71: Positive Cash Flow Achieved in Year # | D71: =MATCH(TRUE,D61:AH61>0,0) -> 13
B75: ROI QuadrantTM | C75: 0 | D75: 1 | E75: 2 | F75: 3 | G75: 4 | H75: 5 | I75: 6 | J75: 7 | K75: 8 | L75: 9 | M75: 10 | N75: 11 | O75: 12 | P75: 13 | Q75: 14 | R75: 15 | S75: 16 | T75: 17 | U75: 18 | V75: 19 | W75: 20 | X75: 21 | Y75: 22 | Z75: 23 | AA75: 24 | AB75: 25 | AC75: 26 | AD75: 27 | AE75: 28 | AF75: 29 | AG75: 30 | AH75: 31
B76: Appreciation | C76: 0 | D76: =E41 -> 0.3690193417 | E76: =H41 -> 0.380089922 | F76: =K41 -> 0.3914926196 | G76: =N41 -> 0.4032373982 | H76: =Q41 -> 0.4153345201 | I76: =T41 -> 0.4277945558 | J76: =W41 -> 0.4406283924 | K76: =Z41 -> 0.4538472442 | L76: =AC41 -> 0.4674626615 | M76: =AF41 -> 0.4814865414 | N76: =AI41 -> 0.4959311376 | O76: =AL41 -> 0.5108090717 | P76: =AO41 -> 0.5261333439 | Q76: =AR41 -> 0.5419173442 | R76: =AU41 -> 0.5581748645 | S76: =AX41 -> 0.5749201105 | T76: =BA41 -> 0.5921677138 | U76: =BD41 -> 0.6099327452 | V76: =BG41 -> 0.6282307276 | W76: =BJ41 -> 0.6470776494 | X76: =BM41 -> 0.6664899789 | Y76: =BP41 -> 0.6864846782 | Z76: =BS41 -> 0.7070792186 | AA76: =BV41 -> 0.7282915951 | AB76: =BY41 -> 0.750140343 | AC76: =CB41 -> 0.7726445533 | AD76: =CE41 -> 0.7958238899 | AE76: =CH41 -> 0.8196986066 | AF76: =CK41 -> 0.8442895648 | AG76: =CN41 -> 0.8696182517 | AH76: =CQ41 -> 0.8957067993
B77: Cash Flow | C77: 0 | D77: =E42 -> -0.3403135251 | E77: =H42 -> -0.3174068403 | F77: =K42 -> -0.2929240511 | G77: =N42 -> -0.2674090706 | H77: =Q42 -> -0.2408190249 | I77: =T42 -> -0.2131092775 | J77: =W42 -> -0.1842333571 | K77: =Z42 -> -0.1541428835 | L77: =AC42 -> -0.122787489 | M77: =AF42 -> -0.09011473768 | N77: =AI42 -> -0.05607004106 | O77: =AL42 -> -0.02059657028 | P77: =AO42 -> 0 | Q77: =AR42 -> 0 | R77: =AU42 -> 0 | S77: =AX42 -> 0 | T77: =BA42 -> 0 | U77: =BD42 -> 0 | V77: =BG42 -> 0 | W77: =BJ42 -> 0 | X77: =BM42 -> 0 | Y77: =BP42 -> 0 | Z77: =BS42 -> 0 | AA77: =BV42 -> 0 | AB77: =BY42 -> 0 | AC77: =CB42 -> 0.6640657736 | AD77: =CE42 -> 1.615038159 | AE77: =CH42 -> 1.683330291 | AF77: =CK42 -> 1.754464826 | AG77: =CN42 -> 1.828558782 | AH77: =CQ42 -> 1.905733957
B78: Debt Paydown | C78: 0 | D78: =E43 -> 0.1308610674 | E78: =H43 -> 0.1396111888 | F78: =K43 -> 0.1489463935 | G78: =N43 -> 0.1589058035 | H78: =Q43 -> 0.1695311568 | I78: =T43 -> 0.1808669821 | J78: =W43 -> 0.1929607857 | K78: =Z43 -> 0.2058632503 | L78: =AC43 -> 0.2196284478 | M78: =AF43 -> 0.2343140653 | N78: =AI43 -> 0.2499816473 | O78: =AL43 -> 0.2666968538 | P78: =AO43 -> 0.30089457 | Q78: =AR43 -> 0.3584307872 | R78: =AU43 -> 0.4188527792 | S78: =AX43 -> 0.4823123499 | T78: =BA43 -> 0.5489697266 | U78: =BD43 -> 0.6189940513 | V78: =BG43 -> 0.6925639031 | W78: =BJ43 -> 0.769867851 | X78: =BM43 -> 0.8511050415 | Y78: =BP43 -> 0.936485822 | Z78: =BS43 -> 1.026232402 | AA78: =BV43 -> 1.120579556 | AB78: =BY43 -> 1.219775367 | AC78: =CB43 -> 0.04238063871 | AD78: =CE43 -> 0 | AE78: =CH43 -> 0 | AF78: =CK43 -> 0 | AG78: =CN43 -> 0 | AH78: =CQ43 -> 0
B79: Depreciation | C79: 0 | D79: =E44 -> 0.1216645587 | E79: =H44 -> 0.1216645587 | F79: =K44 -> 0.1216645587 | G79: =N44 -> 0.1216645587 | H79: =Q44 -> 0.1216645587 | I79: =T44 -> 0.1216645587 | J79: =W44 -> 0.1216645587 | K79: =Z44 -> 0.1216645587 | L79: =AC44 -> 0.1216645587 | M79: =AF44 -> 0.1216645587 | N79: =AI44 -> 0.1216645587 | O79: =AL44 -> 0.1216645587 | P79: =AO44 -> 0.1216645587 | Q79: =AR44 -> 0.1216645587 | R79: =AU44 -> 0.1216645587 | S79: =AX44 -> 0.1216645587 | T79: =BA44 -> 0.1216645587 | U79: =BD44 -> 0.1216645587 | V79: =BG44 -> 0.1216645587 | W79: =BJ44 -> 0.1216645587 | X79: =BM44 -> 0.1216645587 | Y79: =BP44 -> 0.1216645587 | Z79: =BS44 -> 0.1216645587 | AA79: =BV44 -> 0.1216645587 | AB79: =BY44 -> 0.1216645587 | AC79: =CB44 -> 0.1216645587 | AD79: =CE44 -> 0.06083227936 | AE79: =CH44 -> 0 | AF79: =CK44 -> 0 | AG79: =CN44 -> 0 | AH79: =CQ44 -> 0
B80: Total Return on Investment | C80: 0 | D80: =E45 -> 0.2812314427 | E80: =H45 -> 0.3239588292 | F80: =K45 -> 0.3691795208 | G80: =N45 -> 0.4163986898 | H80: =Q45 -> 0.4657112107 | I80: =T45 -> 0.5172168191 | J80: =W45 -> 0.5710203797 | K80: =Z45 -> 0.6272321697 | L80: =AC45 -> 0.685968179 | M80: =AF45 -> 0.7473504277 | N80: =AI45 -> 0.8115073026 | O80: =AL45 -> 0.878573914 | P80: =AO45 -> 0.9486924726 | Q80: =AR45 -> 1.02201269 | R80: =AU45 -> 1.098692202 | S80: =AX45 -> 1.178897019 | T80: =BA45 -> 1.262801999 | U80: =BD45 -> 1.350591355 | V80: =BG45 -> 1.442459189 | W80: =BJ45 -> 1.538610059 | X80: =BM45 -> 1.639259579 | Y80: =BP45 -> 1.744635059 | Z80: =BS45 -> 1.854976179 | AA80: =BV45 -> 1.970535709 | AB80: =BY45 -> 2.091580269 | AC80: =CB45 -> 1.600755524 | AD80: =CE45 -> 2.471694328 | AE80: =CH45 -> 2.503028897 | AF80: =CK45 -> 2.59875439 | AG80: =CN45 -> 2.698177033 | AH80: =CQ45 -> 2.801440756
C81: Mortgage Balance at End of Year | D81: =D37 -> 681037.0487 | E81: =G37 -> 672808.3652 | F81: =J37 -> 664029.4648 | G81: =M37 -> 654663.5567 | H81: =P37 -> 644671.3903 | I81: =S37 -> 634011.0904 | J81: =V37 -> 622637.9817 | K81: =Y37 -> 610504.4017 | L81: =AB37 -> 597559.501 | M81: =AE37 -> 583749.03 | N81: =AH37 -> 569015.1117 | O81: =AK37 -> 553295.9992 | P81: =AN37 -> 535561.2732 | Q81: =AQ37 -> 514435.3626 | R81: =AT37 -> 489748.1798 | S81: =AW37 -> 461320.6899 | T81: =AZ37 -> 428964.4142 | U81: =BC37 -> 392480.9048 | V81: =BF37 -> 351661.1884 | W81: =BI37 -> 306285.1772 | X81: =BL37 -> 256121.0461 | Y81: =BO37 -> 200924.5717 | Z81: =BR37 -> 140438.434 | AA81: =BU37 -> 74391.47497 | AB81: =BX37 -> 2497.914846 | AC81: =CA37 -> 0 | AD81: =CD37 -> 0 | AE81: =CG37 -> 0 | AF81: =CJ37 -> 0 | AG81: =CM37 -> 0 | AH81: =CP37 -> 0
C83: Property Paid Off in Year # | D83: =MATCH(TRUE,D81:AH81=0,0) -> 26
